Workbook

Sheet Cover
C3: Storage & Bandwidth Calculator
D4: Version 5.9b
D5: Last update: July 20, 2012
B7: NVRs
B9: TruVision NVR 40 Simple
B11: TruVision NVR 40 Advanced
B13: DVRs
B14: NTSC Format | D14: PAL Format
B16: TruVision DVR 10 NTSC Simple | D16: TruVision DVR 10 PAL Simple
B18: TruVision DVR 30/31 NTSC Simple
B20: TruVision DVR 30/31 NTSC Advanced
B22: TruVision DVR 60 NTSC Advanced | D22: TruVision DVR 60 PAL Advanced
B24: TruVision DVR 60 Load Balancer
B27: Please select a product above
B30: Disclaimer: Calculations were performed in typical scenario conditions. Actual results may vary

Sheet NVR40 - Simple
F1: TruVision NVR 40
F2: Simple Calculator (no sub-streams)
F6: RESULTS - CONTINUOUS RECORDING
A7: Available Storage | B7: INPUTS | F7: Per Standard IP Camera | G7: Per MegaPixel Camera
A8: Select Model Number | B8: TVN-4004-24-4T | F8: =IF($B$16+$B$18=0,0,$B$12/(1024*($B$16+$B$18))) -> 332.03125 | G8: =IF($B$16+$B$18=0,0,$B$12/(1024*($B$16+$B$18))) -> 332.03125
A9: Total Usable Storage Space (MB) | B9: =IF(B8="TVN-4004-24-4T",3400000,1700000) -> 3400000 | C9: =+B9/1000000 -> 3.4 | D9: GB | F9: =ROUND(IF(B16=0,0,(B12/(B16+B18)*8*1024/(B17*86400))),1) -> 32.2 | G9: =ROUND(IF(B18=0,0,(B12/(B16+B18)*8*1024/(B19*86400))),1) -> 0 | I9: Number of Simultaneous Live & Playback Streams
A10: % of Storage Space Reserved for Alarms (0 = No Alarm Recoding to 100%) | B10: 0 | I10: LIVE | J10: PLAYBACK
A11: Net Storage Available for Event Recording (MB) | B11: =(B9*B10) -> 0 | C11: =+B11/1000000 -> 0 | D11: GB | I11: =+B16+B18 -> 10 | J11: 9
A12: Net Storage Available for Continuous Recording (MB) | B12: =B9-B11 -> 3400000 | C12: =+B12/1000000 -> 3.4 | D12: GB
F14: RESULTS - EVENT/MOTION RECORDING
A15: IP Camera Information | B15: INPUTS
A16: Number of Standard IP Camera Streams | B16: 10 | C16: =IF(OR(AND(B8="TVN-4004-24-4T",B16>24-B14),AND(B6="TVN-4002-12-2T",B16>12-B14)),"# exceeds upper limit","") ->  | F16: Event Storage Per Standard IP Camera* | G16: Event Storage Per MegaPixel Camera*
A17: Configured Bandwidth per Stream (500 - 3000 Kbps) | B17: 1000 | C17: =IF(OR(B17<500,B17>3000),"outside limits","") ->  | F17: =IF($B$16+$B$18=0,0,$B$11/(1024*($B$16+$B$18))) -> 0 | G17: =IF($B$16+$B$18=0,0,$B$11/(1024*($B$16+$B$18))) -> 0
A18: Number of MegaPixel Cameras Streams | B18: 0 | C18: =IF(OR(AND(B8="TVN-4004-24-4T",B18>24-B16),AND(B8="TVN-4002-12-2T",B18>12-B16)),"# exceeds upper limit","") ->  | F18: 0.3 | G18: 0.3
A19: Configured Bandwidth per MegaPixel Stream (500-4000 Kbps) | B19: 4000 | C19: =IF(OR(B19<500,B19>4000),"outside limits","") ->  | F19: =+B17 -> 1000 | G19: =+B19 -> 4000
F20: =ROUND(IF($B$16=0,0,($B$11/($B18+$B$16)*8*1024/($F$19*86400)))/F$18,1) -> 0 | G20: =ROUND(IF($B$18=0,0,($B$11/($B$16+$B$18)*8*1024/($G$19*86400)))/G$18,1) -> 0
F22: * Available only if camera supports activity/motion detection
A23: Back to Cover

Sheet NVR40 - Advanced
F1: TruVision NVR 40
F2: Advanced Calculator (w / sub-streams)
F6: RESULTS - CONTINUOUS RECORDING
A8: Available Storage | B8: INPUTS | F8: Per Standard IP Camera | G8: Per Alternate Stream IP Camera | H8: Per MegaPixel Camera
A9: Select Model Number | B9: TVN-4004-24-4T | F9: =IF($B$17+$B$19+$B$21=0,0,$B$13/(1024*($B$17+$B$19+$B$21))) -> 207.5195312 | G9: =IF($B$17+$B$19+$B$21=0,0,$B$13/(1024*($B$17+$B$19+$B$21))) -> 207.5195312 | H9: =IF($B$17+$B$19+$B$21=0,0,$B$13/(1024*($B$17+$B$19+$B$21))) -> 207.5195312
A10: Total Usable Storage Space | B10: =IF(B9="TVN-4004-24-4T",3400000,1700000) -> 3400000 | C10: =+B10/1000000 -> 3.4 | D10: GB | F10: =ROUND(IF(B17=0,0,(B13/(B17+B19+B21)*8*1024/(B18*86400))),1) -> 0 | G10: =ROUND(IF(B19=0,0,(B13/(B17+B19+B21)*8*1024/(B20*86400))),1) -> 0 | H10: =ROUND(IF(B21=0,0,(B13/(B17+B19+B21)*8*1024/(B22*86400))),1) -> 1.3 | J10: Number of Simultaneous Live & Playback Streams
A11: % of Storage Space Reserved for Alarms (0 = No Alarm Recoding to 100%) | B11: 0 | J11: LIVE | K11: PLAYBACK
A12: Net Storage Available for Event Recording | B12: =B10*B11 -> 0 | C12: =+B12/1000000 -> 0 | D12: GB | J12: =+B17+B19+B21 -> 16 | K12: 9
A13: Net Storage Available for Continuous Recording | B13: =B10-B12 -> 3400000 | C13: =+B13/1000000 -> 3.4 | D13: GB
F15: RESULTS - EVENT/MOTION RECORDING
A16: IP Camera Information | B16: INPUTS
A17: Number of Single Stream IP Cameras | B17: 0 | C17: =IF(OR(AND(B9="TVN-4004-24-4T",B17>24),AND(B9="TVN-4002-12-2T",B17>12)),"# exceeds upper limit","") ->  | F17: Event Storage Per Standard IP Camera* | G17: Event Storage Per Alternate Stream IP Camera* | H17: Event Storage Per MegaPixel Camera*
A18: Configured Bandwidth per Stream (500 - 3000 Kbps) | B18: 1000 | C18: =IF(OR(B18<500,B18>3000),"outside limits","") ->  | F18: =IF($B$17+$B$19+$B$21=0,0,$B$12/(1024*($B$17+$B$19+$B$21))) -> 0 | G18: =IF($B$17+$B$19+$B$21=0,0,$B$12/(1024*($B$17+$B$19+$B$21))) -> 0 | H18: =IF($B$17+$B$19+$B$21=0,0,$B$12/(1024*($B$17+$B$19+$B$21))) -> 0
A19: Number of 2nd Stream (Alternate) from Dual Streaming IP Cameras | B19: 0 | C19: =IF(OR(AND(B9="TVN-4004-24-4T",B19>24-B17),AND(B9="TVN-4002-12-2T",B19>12-B17)),"# exceeds upper limit","") ->  | F19: 0.3 | G19: 0.3 | H19: 0.3
A20: Configured Bandwidth per Alternate Stream (500-3000 Kbps) | B20: 500 | C20: =IF(OR(B20<500,B20>3000),"outside limits","") ->  | F20: =+B18 -> 1000 | G20: =+B20 -> 500 | H20: =+B22 -> 16000
A21: Number of MegaPixel Cameras | B21: 16 | C21: =IF(OR(AND(B9="TVN-4004-24-4T",B21>24-B17-B19),AND(B9="TVN-4002-12-2T",B21>12-B17-B19)),"# exceeds upper limit","") ->  | F21: =ROUND(IF($B$17=0,0,($B$12/($B$17+$B$19+$B$21)*8*1024/($F$20*86400)))/F$19,1) -> 0 | G21: =ROUND(IF($B$19=0,0,($B$12/($B17+$B$19+$B$21)*8*1024/($G$20*86400)))/G$19,1) -> 0 | H21: =ROUND(IF($B$21=0,0,($B$12/($B$17+$B$19+$B$21)*8*1024/($H$20*86400)))/H$19,1) -> 0
A22: Configured Bandwidth per MegaPixel Stream (500-4000 Kbps) | B22: 16000 | C22: =IF(OR(B22<500,B22>4000),"outside limits","") -> outside limits | F22: * Available only if camera supports activity/motion detection
A26: Back to Cover

Sheet TVR10 NTSC Simple
B1: TruVision DVR 10
B2: Calculator (NTSC)
D4: Storage Requirements:
B5: INPUTS | D5: 4CIF | E5: DCIF | F5: 2CIF | G5: CIF | H5: QCIF
A6: Number of Days of Storage | B6: 30 | D6: =' '!E613 -> 1223.989834 | E6: =' '!F613 -> 428.0699664 | F6: =' '!G613 -> 437.0012208 | G6: =' '!H613 -> 176.0406048 | H6: =' '!I613 -> 64.47290256
A7: Numbers of Cameras | B7: 4 | D7: =' '!E614 -> 1.223989834 | E7: =' '!F614 -> 0.4280699664 | F7: =' '!G614 -> 0.4370012208 | G7: =' '!H614 -> 0.1760406048 | H7: =' '!I614 -> 0.06447290256
A8: Frames Per Second (per ch) | B8: 6
A9: Quality Setting | B9: Highest | D9: Bandwidth Usage:
A10: % Motion Detection Rec. | B10: 0 | D10: 4CIF | E10: DCIF | F10: 2CIF | G10: CIF | H10: QCIF
A11: *Please note the values calculated are +/- 5% accurate. | D11: =' '!E607*' '!B604/1000000 -> 3.7777464 | E11: =' '!F607*' '!B604/1000000 -> 1.3212036 | F11: =' '!G607*' '!B604/1000000 -> 1.3487692 | G11: =' '!H607*' '!B604/1000000 -> 0.5433352 | H11: =' '!I607*' '!B604/1000000 -> 0.19899044
D12: =D11*1000 -> 3777.7464 | E12: =E11*1000 -> 1321.2036 | F12: =F11*1000 -> 1348.7692 | G12: =G11*1000 -> 543.3352 | H12: =H11*1000 -> 198.99044
D17: Back to Cover

Sheet TVR10 PAL Simple
B1: TruVision DVR 10
B2: Calculator (PAL)
D4: Storage Requirements:
B5: INPUTS | D5: 4CIF | E5: DCIF | F5: 2CIF | G5: CIF | H5: QCIF
A6: Number of Days of Storage | B6: 30 | D6: =' '!E645 -> 1403.680041 | E6: =' '!F645 -> 524.8254844 | F6: =' '!G645 -> 521.1612325 | G6: =' '!H645 -> 173.7101543 | H6: =' '!I645 -> 64.47825755
A7: Numbers of Cameras | B7: 4 | D7: =' '!E646 -> 1.403680041 | E7: =' '!F646 -> 0.5248254844 | F7: =' '!G646 -> 0.5211612325 | G7: =' '!H646 -> 0.1737101543 | H7: =' '!I646 -> 0.06447825755
A8: Frames Per Second (per ch) | B8: 6
A9: Quality Setting | B9: Highest | D9: Bandwidth Usage:
A10: % Motion Detection Rec. | B10: 0 | D10: 4CIF | E10: DCIF | F10: 2CIF | G10: CIF | H10: QCIF
A11: *Please note the values calculated are +/- 5% accurate. | D11: =' '!E639*' '!B636/1000000 -> 4.332345806 | E11: =' '!F639*' '!B636/1000000 -> 1.619831742 | F11: =' '!G639*' '!B636/1000000 -> 1.608522323 | G11: =' '!H639*' '!B636/1000000 -> 0.5361424516 | H11: =' '!I639*' '!B636/1000000 -> 0.1990069677
D12: =D11*1000 -> 4332.345806 | E12: =E11*1000 -> 1619.831742 | F12: =F11*1000 -> 1608.522323 | G12: =G11*1000 -> 536.1424516 | H12: =H11*1000 -> 199.0069677
D17: Back to Cover

Sheet TVR30-31 NTSC Simple
B1: TruVision DVR 30/31
B2: Calculator (NTSC)
E4: Storage Requirements:
B5: INPUTS | E5: D1 | F5: 2CIF | G5: CIF
A6: Number of Days of Storage | B6: 30 | D6: STILL | E6: =' '!E673 -> 622.440288 | F6: =' '!F673 -> 331.376832 | G6: =' '!G673 -> 155.000304
A7: Numbers of Cameras | B7: 1 | E7: =' '!E674 -> 0.622440288 | F7: =' '!F674 -> 0.331376832 | G7: =' '!G674 -> 0.155000304
A8: Frames Per Second (per ch) | B8: 30 | D8: PANNING | E8: =' '!E697 -> 1036.143252 | F8: =' '!F697 -> 661.450536 | G8: =' '!G697 -> 259.810416
A9: Quality Setting | B9: Standard | E9: =' '!E698 -> 1.036143252 | F9: =' '!F698 -> 0.661450536 | G9: =' '!G698 -> 0.259810416
A10: % Motion Detection Rec. | B10: 1
A11: *Please note the values calculated are +/- 10% accurate. | E11: Bandwidth Usage:
E12: D1 | F12: 2CIF | G12: CIF
A13: Total Supported Frame Rate | D13: STILL | E13: =' '!E667*' '!B664/1000000 -> 1.921112 | F13: =' '!F667*' '!B664/1000000 -> 1.022768 | G13: =' '!G667*' '!B664/1000000 -> 0.478396
A14: D1 Resolution Max of 120 fps | B14: =B7*B8 -> 30 | E14: =E13*1000 -> 1921.112 | F14: =F13*1000 -> 1022.768 | G14: =G13*1000 -> 478.396
A15: 2CIF Resolution Max of 240 fps | B15: =B7*B8 -> 30 | D15: PANNING | E15: =' '!E691*' '!B688/1000000 -> 3.197973 | F15: =' '!F691*' '!B688/1000000 -> 2.041514 | G15: =' '!G691*' '!B688/1000000 -> 0.801884
A16: CIF Resolution Max of 480 fps | B16: =B7*B8 -> 30 | E16: =E15*1000 -> 3197.973 | F16: =F15*1000 -> 2041.514 | G16: =G15*1000 -> 801.884
E19: Advanced
E21: Back to Cover

Sheet TVR30-31 NTSC Advanced
B1: TVR 30/31 Advanced (Expert Mode)
B2: Calculator (NTSC)
B4: INPUTS
A5: Number of Days of Storage | B5: 30
A6: Number of Cameras | B6: 16
A7: Global Resolution Setting | B7: 2CIF
A8: FPS Budget | B8: 240
A10: Cameras | B10: 1 | C10: 2 | D10: 3 | E10: 4 | F10: 5 | G10: 6 | H10: 7 | I10: 8 | J10: 9 | K10: 10 | L10: 11 | M10: 12 | N10: 13 | O10: 14 | P10: 15 | Q10: 16 | R10: 17 | S10: 18 | T10: 19 | U10: 20
A11: Video: Still or Panning | B11: STILL | C11: STILL | D11: STILL | E11: STILL | F11: STILL | G11: STILL | H11: STILL | I11: STILL | J11: STILL | K11: STILL | L11: STILL | M11: STILL | N11: STILL | O11: STILL | P11: STILL | Q11: STILL
A12: Resolution | B12: =B7 -> 2CIF | C12: =B7 -> 2CIF | D12: =B7 -> 2CIF | E12: =B7 -> 2CIF | F12: =B7 -> 2CIF | G12: =B7 -> 2CIF | H12: =B7 -> 2CIF | I12: =B7 -> 2CIF | J12: =B7 -> 2CIF | K12: =B7 -> 2CIF | L12: =B7 -> 2CIF | M12: =B7 -> 2CIF | N12: =B7 -> 2CIF | O12: =B7 -> 2CIF | P12: =B7 -> 2CIF | Q12: =B7 -> 2CIF | R12: 2CIF | S12: 2CIF | T12: 2CIF | U12: 2CIF
A13: Frame Per Second | B13: 7.5 | C13: 7.5 | D13: 7.5 | E13: 7.5 | F13: 7.5 | G13: 7.5 | H13: 7.5 | I13: 7.5 | J13: 7.5 | K13: 7.5 | L13: 7.5 | M13: 7.5 | N13: 7.5 | O13: 7.5 | P13: 7.5 | Q13: 7.5 | R13: 30 | S13: 30 | T13: 30 | U13: 30
A14: Quality | B14: Best | C14: Best | D14: Best | E14: Best | F14: Best | G14: Best | H14: Best | I14: Best | J14: Best | K14: Best | L14: Best | M14: Best | N14: Best | O14: Best | P14: Best | Q14: Best | R14: Best | S14: Best | T14: Best | U14: Best
A15: % Motion Recording | B15: 0 | C15: 0 | D15: 0 | E15: 0 | F15: 0 | G15: 0 | H15: 0 | I15: 0 | J15: 0 | K15: 0 | L15: 0 | M15: 0 | N15: 0 | O15: 0 | P15: 0 | Q15: 0 | R15: 0.25 | S15: 0.25 | T15: 0.25 | U15: 0.25
A16: Bandwidth Consumption (Mbps) | B16: =' '!B734 -> 0.344313 | C16: =' '!C734 -> 0.344313 | D16: =' '!D734 -> 0.344313 | E16: =' '!E734 -> 0.344313 | F16: =' '!F734 -> 0.344313 | G16: =' '!G734 -> 0.344313 | H16: =' '!H734 -> 0.344313 | I16: =' '!I734 -> 0.344313 | J16: =' '!J734 -> 0.344313 | K16: =' '!K734 -> 0.344313 | L16: =' '!L734 -> 0.344313 | M16: =' '!M734 -> 0.344313 | N16: =' '!N734 -> 0.344313 | O16: =' '!O734 -> 0.344313 | P16: =' '!P734 -> 0.344313 | Q16: =' '!Q734 -> 0.344313 | R16: =' '!R40 ->  | S16: =' '!S40 ->  | T16: =' '!T40 ->  | U16: =' '!U40 -> 
A17: *Please note the values calculated are +/- 10% accurate.
A20: Total Storage Required | B20: =' '!V743 -> 1784.918592 | E20: Simple
B21: =' '!V744 -> 1.784918592
E22: Back to Cover
A23: Total Bandwidth Required | B23: =' '!V746 -> 5.509008 | C23: Mbps
B24: =' '!V747 -> 5509.008 | C24: kbps
B33: Cameras | C33: Resolution | D33: FrameRate | E33: Quality | F33: =A10&B6 -> Cameras16 | G33: Total FPS
B34: 1 | C34: D1 | D34: 30 | E34: Best | F34: =RIGHT(F33, LEN(F33)-7) -> 16 | G34: =SUMIF(B12:G12, "D1", (B13:Q13)) -> 0 | H34: =SUMIF(H12:M12, "D1", (B13:Q13)) -> 0 | I34: =SUMIF(N12:Q12, "D1", (B13:Q13)) -> 0 | K34: =SUM(G34:I34) -> 0
B35: 2 | C35: 2CIF | D35: 15 | E35: High | G35: =SUMIF(B12:G12, "2CIF", (B13:Q13)) -> 45 | H35: =SUMIF(H12:M12, "2CIF", (B13:Q13)) -> 45 | I35: =SUMIF(N12:Q12, "2CIF", (B13:Q13)) -> 30 | J35: = | K35: =SUM(G35:I35) -> 120
B36: 3 | C36: CIF | D36: 11 | E36: Standard | G36: =SUMIF(B12:G12, "CIF", (B13:Q13)) -> 0 | H36: =SUMIF(H12:M12, "CIF", (B13:Q13)) -> 0 | I36: =SUMIF(N12:Q12, "CIF", (B13:Q13)) -> 0 | K36: =SUM(G36:I36) -> 0
B37: 4 | D37: 7.5 | E37: Fair
B38: 5 | D38: 3.75 | E38: Low | G38: =SUMIF(B12:Q12, "D1", (B13:Q13)) -> 0 | H38: D1
B39: 6 | D39: 1 | G39: =SUMIF(B12:Q12, "2CIF", (B13:Q13)) -> 120 | H39: 2CIF
B40: 7 | G40: =SUMIF(B12:Q12, "CIF", (B13:Q13)) -> 0 | H40: CIF
B41: 8
B42: 9
B43: 10
B44: 11
B45: 12
B46: 13
B47: 14
B48: 15
B49: 16

Sheet TVR 60 NTSC Advanced
M2: =IF(C30="Analog",0,IF(C30="Unused",0,1)) -> 0 | N2: =IF(C30="Analog",1,IF(C30="Unused",0,0)) -> 1
E3: TVR 60 NTSC Advanced HDD Storage Calculator | M3: 0 | N3: 1
M4: 0 | N4: 1
M5: 0 | N5: 1
M6: 0 | N6: 1
B7: Recommended Bit-Rates (higher motion requires higher bit rates) | M7: 0 | N7: 1
B8: Resolution / fps | D8: Less than 4 fps | E8: Up to 8 fps | F8: Up to 12 fps | G8: Up to 16 fps | H8: Up to 30 fps | I8: Channels | K8: Resolution / fps | M8: 0 | N8: 1
B9: QCIF / CIF | D9: 48 - 192 kbps | E9: 192 - 384 kbps | F9: 384 - 512 kbps | G9: 512 - 768 kbps | H9: 768 - 1000 kbps | I9: all up to real-time | K9: QCIF / CIF | M9: 0 | N9: 1
B10: 2CIF | D10: 64 - 256kbps | E10: 256 - 640kbps | F10: 640 - 896 kbps | G10: 896 - 1280kbps | H10: 1280 - 1792kbps | I10: all up to real-time | K10: 2CIF | M10: 0 | N10: 1
B11: 4CIF | D11: 80 - 448 kbps | E11: 448 - 896 kbps | F11: 896 - 1280kbps | G11: 1280 - 1792kbps | H11: 1792 - 2048 kbps | I11: all up to real-time | K11: 4CIF | M11: 0 | N11: 1
B12: INSTRUCTIONS: To calculate the required storage capacity, the following information is required: Resolution, number of frames (fps), active hours, number of storage days desired, bit-rate (from table above), and video motion detection (VMD). | M12: 0 | N12: 1
B13: Remember: Too low bit-rates will cause poor picture quality. | M13: 0 | N13: 1
B14: Determine the camera type first, TVR 60 has a combined sytem performance of 24 cameras, of which up to 16 can be IP cameras. Start by selecting the "Resolution" and "No. of frames" in the YELLOW fields of the table for a realistic choice of "Bite Rate" selection. | M14: 0 | N14: 1
M15: 0 | N15: 1
M16: 0 | N16: 1
M17: 0 | N17: 1
B18: In the "Active Hours" cell select the schedule, and in the "Number of Days of Storage Desired" cell enter a value. | M18: 0 | N18: 0
M19: 0 | N19: 0
B20: Finally in the table, select the VMD % in the columns "Active / Silent Hours". Repeat for all connected cameras. | M20: 0 | N20: 0
B21: Fields in yellow should be changed, these fields have direct influence on the calculation | M21: 0 | N21: 0
B22: Fields in light gray are formulas and should not be changed | M22: 0 | N22: 0
B23: Number of Active Hours/Silent Hours per day | F23: Number of Days of Storage Desired | M23: 0 | N23: 0
B24: 24 | F24: 30 | M24: 0 | N24: 0 | P24: =IF(H46 = "camera not used",0, IF(C46 = "IP",0,M46))*1024 -> 7382.8125
B25: 0 | M25: 0 | N25: 0
B27: TVR 60 Name: | H27: *Please note the values calculated are +/- 5% accurate. | M27: =IF(B25 = "No Silent Hours","0", 24-B24) -> 0
B29: Camera No. | C29: Camera Type | D29: Camera Name | F29: Resolution | G29: No. of Frames fps | H29: Bit-Rate | I29: Active Hours VMD % | J29: Silent Hours VMD % | K29: Storage per day per ch. | M29: =SUM(M2:M25) -> 0 | N29: =SUM(N2:N25) -> 16 | P29: Open hours | R29: Resolution | S29: FPS | T29: Bitrates
B30: Camera 1 | C30: Analog | F30: 4CIF | G30: 4 | H30: 448 | I30: 0.4 | J30: 0 | K30: =IF(C30 = "Unused",0,M30)*1024 -> 1845.703125 | M30: =SUM((H30/8*3600*$B$24*I30)+(H30/8*3600*$M$27*J30))/1073741.824 -> 1.802444458 | N30: 0 | P30: 1 | R30: QCIF | S30: 1/16 fps
B31: Camera 2 | C31: Analog | F31: 4CIF | G31: 4 | H31: 448 | I31: 0.4 | J31: 0 | K31: 1845.703125 | M31: 1.802444458 | N31: 0.05 | P31: 2 | R31: CIF | S31: 1 | T31: 32
B32: Camera 3 | C32: Analog | F32: 4CIF | G32: 4 | H32: 448 | I32: 0.4 | J32: 0 | K32: 1845.703125 | M32: 1.802444458 | N32: 0.1 | P32: 3 | R32: 2CIF | S32: 2 | T32: 48
B33: Camera 4 | C33: Analog | F33: 4CIF | G33: 4 | H33: 448 | I33: 0.4 | J33: 0 | K33: 1845.703125 | M33: 1.802444458 | N33: 0.15 | P33: 4 | R33: 4CIF | S33: 4 | T33: 64
B34: Camera 5 | C34: Analog | F34: 4CIF | G34: 4 | H34: 448 | I34: 0.4 | J34: 0 | K34: 1845.703125 | M34: 1.802444458 | N34: 0.2 | P34: 5 | S34: 8 | T34: 80
B35: Camera 6 | C35: Analog | F35: 4CIF | G35: 4 | H35: 448 | I35: 0.4 | J35: 0 | K35: 1845.703125 | M35: 1.802444458 | N35: 0.25 | P35: 6 | S35: 12 | T35: 96
B36: Camera 7 | C36: Analog | F36: 4CIF | G36: 4 | H36: 448 | I36: 0.4 | J36: 0 | K36: 1845.703125 | M36: 1.802444458 | N36: 0.3 | P36: 7 | S36: 16 | T36: 128
B37: Camera 8 | C37: Analog | F37: 4CIF | G37: 4 | H37: 448 | I37: 0.4 | J37: 0 | K37: 1845.703125 | M37: 1.802444458 | N37: 0.4 | P37: 8 | S37: 20 | T37: 160
B38: Camera 9 | C38: Analog | F38: 4CIF | G38: 4 | H38: 448 | I38: 0.4 | J38: 0 | K38: 1845.703125 | M38: 1.802444458 | N38: 0.5 | P38: 9 | S38: real-time | T38: 192
B39: Camera 10 | C39: Analog | F39: 4CIF | G39: 4 | H39: 448 | I39: 0.4 | J39: 0 | K39: 1845.703125 | M39: 1.802444458 | N39: 0.6 | P39: 10 | T39: 224
B40: Camera 11 | C40: Analog | F40: 4CIF | G40: 4 | H40: 448 | I40: 0.4 | J40: 0 | K40: 1845.703125 | M40: 1.802444458 | N40: 0.7 | P40: 11 | T40: 256
B41: Camera 12 | C41: Analog | F41: 4CIF | G41: 4 | H41: 448 | I41: 0.4 | J41: 0 | K41: 1845.703125 | M41: 1.802444458 | N41: 0.8 | P41: 12 | T41: 320
B42: Camera 13 | C42: Analog | F42: 4CIF | G42: 4 | H42: 448 | I42: 0.4 | J42: 0 | K42: 1845.703125 | M42: 1.802444458 | N42: 0.9 | P42: 13 | T42: 384
B43: Camera 14 | C43: Analog | F43: 4CIF | G43: 4 | H43: 448 | I43: 0.4 | J43: 0 | K43: 1845.703125 | M43: 1.802444458 | N43: 1 | P43: 14 | T43: 448
B44: Camera 15 | C44: Analog | F44: 4CIF | G44: 4 | H44: 448 | I44: 0.4 | J44: 0 | K44: 1845.703125 | M44: 1.802444458 | P44: 15 | T44: 512
B45: Camera 16 | C45: Analog | F45: 4CIF | G45: 4 | H45: 448 | I45: 0.4 | J45: 0 | K45: 1845.703125 | M45: 1.802444458 | P45: 16 | T45: 640
B46: Camera 17 | C46: Unused | F46: 4CIF | G46: real-time | H46: 1792 | I46: 0.4 | J46: 0 | K46: 0 | M46: 7.209777832 | P46: 17 | T46: 768
B47: Camera 18 | C47: Unused | F47: 4CIF | G47: real-time | H47: 1792 | I47: 0.4 | J47: 0 | K47: 0 | M47: 7.209777832 | P47: 18 | T47: 896
B48: Camera 19 | C48: Unused | F48: 4CIF | G48: real-time | H48: 1792 | I48: 0.4 | J48: 0 | K48: 0 | M48: 7.209777832 | P48: 19 | T48: 1024
B49: Camera 20 | C49: Unused | F49: 4CIF | G49: real-time | H49: 1792 | I49: 0.4 | J49: 0 | K49: 0 | M49: 7.209777832 | P49: 20 | T49: 1280
B50: Camera 21 | C50: Unused | F50: 4CIF | G50: real-time | H50: 1792 | I50: 0.4 | J50: 0 | K50: 0 | M50: 7.209777832 | P50: 21 | T50: 1536
B51: Camera 22 | C51: Unused | F51: 4CIF | G51: real-time | H51: 1792 | I51: 0.4 | J51: 0 | K51: 0 | M51: 7.209777832 | P51: 22 | T51: 1792
B52: Camera 23 | C52: Unused | F52: 4CIF | G52: real-time | H52: 1792 | I52: 0.4 | J52: 0 | K52: 0 | M52: 7.209777832 | P52: 23 | T52: 2048
B53: Camera 24 | C53: Unused | F53: 4CIF | G53: real-time | H53: 1792 | I53: 0.4 | J53: 0 | K53: 0 | M53: 7.209777832 | P53: 24 | T53: For IP Cameras, enter the IP camera streaming bit-rate!
B54: =IF(N29>16,"The max. supported analog Camera qty. has been reached!"," ") ->  | H54: Total per day (GB) | K54: =SUM(K30:K53)/1024 -> 28.83911133
B55: =IF(M29>16,"The max. supported IP Camera qty. has been reached!"," ") ->  | H55: Under Estimation Buffer 20% (GB) | K55: =K54*0.2 -> 5.767822266 | M55: Analog
B56: =IF(M29 >0,T53, " ") ->  | H56: Total Storage needed | J56: =F24 -> 30 | K56: =SUM(K55+K54)*J56 -> 1038.208008 | M56: IP
B57: It is recommended to order your TVR 60 with the next highest storage configuration than that calculated. | M57: Unused
J58: Back to Cover

Sheet TVR 60 PAL Advanced
M2: =IF(C30="Analog",0,IF(C30="Unused",0,1)) -> 1 | N2: =IF(C30="Analog",1,IF(C30="Unused",0,0)) -> 0
E3: TVR 60 PAL Advanced HDD Storage Calculator | M3: 0 | N3: 1
M4: 0 | N4: 1
M5: 0 | N5: 1
M6: 0 | N6: 1
B7: Recommended Bit-Rates (higher motion requires higher bit rates) | M7: 0 | N7: 1
B8: Resolution / fps | D8: Less than 4 fps | E8: Up to 8 fps | F8: Up to 12 fps | G8: Up to 16 fps | H8: Up to 25 fps | I8: Channels | K8: Resolution / fps | M8: 0 | N8: 1
B9: QCIF / CIF | D9: 48 - 192 kbps | E9: 192 - 384 kbps | F9: 384 - 512 kbps | G9: 512 - 768 kbps | H9: 768 - 1000 kbps | I9: all up to real-time | K9: QCIF / CIF | M9: 0 | N9: 1
B10: 2CIF | D10: 64 - 256kbps | E10: 256 - 640kbps | F10: 640 - 896 kbps | G10: 896 - 1280kbps | H10: 1280 - 1792kbps | I10: all up to real-time | K10: 2CIF | M10: 0 | N10: 1
B11: 4CIF | D11: 80 - 448 kbps | E11: 448 - 896 kbps | F11: 896 - 1280kbps | G11: 1280 - 1792kbps | H11: 1792 - 2048 kbps | I11: all up to real-time | K11: 4CIF | M11: 0 | N11: 1
B12: INSTRUCTIONS: To calculate the required storage capacity, the following information is required: Resolution, number of frames (fps), active hours, number of storage days desired, bit-rate (from table above), and video motion detection (VMD). | M12: 0 | N12: 1
B13: Remember: Too low bit-rates will cause poor picture quality. | M13: 0 | N13: 1
B14: Determine the camera type first, TVR 60 has a combined sytem performance of 24 cameras, of which up to 16 can be IP cameras. Start by selecting the "Resolution" and "No. of frames" in the YELLOW fields of the table for a realistic choice of "Bite Rate" selection. | M14: 0 | N14: 1
M15: 0 | N15: 1
M16: 0 | N16: 1
M17: 0 | N17: 1
B18: In the "Active Hours" cell select the schedule, and in the "Number of Days of Storage Desired" cell enter a value. | M18: 0 | N18: 0
M19: 0 | N19: 0
B20: Finally in the table, select the VMD % in the columns "Active / Silent Hours". Repeat for all connected cameras. | M20: 0 | N20: 0
B21: Fields in yellow should be changed, these fields have direct influence on the calculation | M21: 0 | N21: 0
B22: Fields in light gray are formulas and should not be changed | M22: 0 | N22: 0
B23: Number of Active Hours/Silent Hours per day | F23: Number of Days of Storage Desired | M23: 0 | N23: 0
B24: 24 | F24: 30 | M24: 0 | N24: 0 | P24: =IF(H46 = "camera not used",0, IF(C46 = "IP",0,M46))*1024 -> 8437.5
B25: =IF(24-B24 = 0,"No Silent Hours", 24-B24) -> No Silent Hours | M25: 0 | N25: 0
B27: TVR 60 Name: | H27: *Please note the values calculated are +/- 5% accurate. | M27: =IF(B25 = "No Silent Hours","0", 24-B24) -> 0
B29: Camera No. | C29: Camera Type | D29: Camera Name | F29: Resolution | G29: No. of Frames fps | H29: Bit-Rate | I29: Active Hours VMD % | J29: Silent Hours VMD % | K29: Storage per day per ch. | M29: =SUM(M2:M25) -> 1 | N29: =SUM(N2:N25) -> 15 | P29: Open hours | R29: Resolution | S29: FPS | T29: Bitrates
B30: Camera 1 | C30: IP | F30: 4CIF | G30: 4 | H30: 448 | I30: 0.4 | J30: 0.05 | K30: =IF(C30 = "Unused",0,M30)*1024 -> 1845.703125 | M30: =SUM((H30/8*3600*$B$24*I30)+(H30/8*3600*$M$27*J30))/1073741.824 -> 1.802444458 | N30: 0 | P30: 1 | R30: QCIF | S30: 1/16 fps
B31: Camera 2 | C31: Analog | F31: 4CIF | G31: 4 | H31: 448 | I31: 0.4 | J31: 0 | K31: 1845.703125 | M31: 1.802444458 | N31: 0.05 | P31: 2 | R31: CIF | S31: 1 | T31: 32
B32: Camera 3 | C32: Analog | F32: 4CIF | G32: 4 | H32: 448 | I32: 0.4 | J32: 0 | K32: 1845.703125 | M32: 1.802444458 | N32: 0.1 | P32: 3 | R32: 2CIF | S32: 2 | T32: 48
B33: Camera 4 | C33: Analog | F33: 4CIF | G33: 4 | H33: 448 | I33: 0.4 | J33: 0 | K33: 1845.703125 | M33: 1.802444458 | N33: 0.15 | P33: 4 | R33: 4CIF | S33: 4 | T33: 64
B34: Camera 5 | C34: Analog | F34: 4CIF | G34: 4 | H34: 448 | I34: 0.4 | J34: 0 | K34: 1845.703125 | M34: 1.802444458 | N34: 0.2 | P34: 5 | S34: 8 | T34: 80
B35: Camera 6 | C35: Analog | F35: 4CIF | G35: 4 | H35: 448 | I35: 0.4 | J35: 0 | K35: 1845.703125 | M35: 1.802444458 | N35: 0.25 | P35: 6 | S35: 12 | T35: 96
B36: Camera 7 | C36: Analog | F36: 4CIF | G36: 4 | H36: 448 | I36: 0.4 | J36: 0 | K36: 1845.703125 | M36: 1.802444458 | N36: 0.3 | P36: 7 | S36: 16 | T36: 128
B37: Camera 8 | C37: Analog | F37: 4CIF | G37: 4 | H37: 448 | I37: 0.4 | J37: 0 | K37: 1845.703125 | M37: 1.802444458 | N37: 0.4 | P37: 8 | S37: 20 | T37: 160
B38: Camera 9 | C38: Analog | F38: 4CIF | G38: 4 | H38: 448 | I38: 0.4 | J38: 0 | K38: 1845.703125 | M38: 1.802444458 | N38: 0.5 | P38: 9 | S38: real-time | T38: 192
B39: Camera 10 | C39: Analog | F39: 4CIF | G39: 4 | H39: 448 | I39: 0.4 | J39: 0 | K39: 1845.703125 | M39: 1.802444458 | N39: 0.6 | P39: 10 | T39: 224
B40: Camera 11 | C40: Analog | F40: 4CIF | G40: 4 | H40: 448 | I40: 0.4 | J40: 0 | K40: 1845.703125 | M40: 1.802444458 | N40: 0.7 | P40: 11 | T40: 256
B41: Camera 12 | C41: Analog | F41: 4CIF | G41: 4 | H41: 448 | I41: 0.4 | J41: 0 | K41: 1845.703125 | M41: 1.802444458 | N41: 0.8 | P41: 12 | T41: 320
B42: Camera 13 | C42: Analog | F42: 4CIF | G42: 4 | H42: 448 | I42: 0.4 | J42: 0 | K42: 1845.703125 | M42: 1.802444458 | N42: 0.9 | P42: 13 | T42: 384
B43: Camera 14 | C43: Analog | F43: 4CIF | G43: 4 | H43: 448 | I43: 0.4 | J43: 0 | K43: 1845.703125 | M43: 1.802444458 | N43: 1 | P43: 14 | T43: 448
B44: Camera 15 | C44: Analog | F44: 4CIF | G44: 4 | H44: 448 | I44: 0.4 | J44: 0 | K44: 1845.703125 | M44: 1.802444458 | P44: 15 | T44: 512
B45: Camera 16 | C45: Analog | F45: 4CIF | G45: 4 | H45: 448 | I45: 0.4 | J45: 0 | K45: 1845.703125 | M45: 1.802444458 | P45: 16 | T45: 640
B46: Camera 17 | C46: Unused | F46: 4CIF | G46: real-time | H46: 2048 | I46: 0.4 | J46: 0 | K46: 0 | M46: 8.239746094 | P46: 17 | T46: 768
B47: Camera 18 | C47: Unused | F47: 4CIF | G47: real-time | H47: 2048 | I47: 0.4 | J47: 0 | K47: 0 | M47: 8.239746094 | P47: 18 | T47: 896
B48: Camera 19 | C48: Unused | F48: 4CIF | G48: real-time | H48: 3000 | I48: 0.4 | J48: 0 | K48: 0 | M48: 12.06994057 | P48: 19 | T48: 1024
B49: Camera 20 | C49: Unused | F49: 4CIF | G49: real-time | H49: 3000 | I49: 0.4 | J49: 0 | K49: 0 | M49: 12.06994057 | P49: 20 | T49: 1280
B50: Camera 21 | C50: Unused | F50: 4CIF | G50: real-time | H50: 3000 | I50: 0.4 | J50: 0 | K50: 0 | M50: 12.06994057 | P50: 21 | T50: 1536
B51: Camera 22 | C51: Unused | F51: 4CIF | G51: real-time | H51: 3000 | I51: 0.4 | J51: 0 | K51: 0 | M51: 12.06994057 | P51: 22 | T51: 1792
B52: Camera 23 | C52: Unused | F52: 4CIF | G52: real-time | H52: 3000 | I52: 0.4 | J52: 0 | K52: 0 | M52: 12.06994057 | P52: 23 | T52: 2048
B53: Camera 24 | C53: Unused | F53: 4CIF | G53: real-time | H53: 3000 | I53: 0.4 | J53: 0 | K53: 0 | M53: 12.06994057 | P53: 24 | T53: For IP Cameras, enter the IP camera streaming bit-rate!
B54: =IF(N29>16,"The max. supported analog Camera qty. has been reached!"," ") ->  | H54: Total per day (GB) | K54: =SUM(K30:K53)/1024 -> 28.83911133
B55: =IF(M29>16,"The max. supported IP Camera qty. has been reached!"," ") ->  | H55: Under Estimation Buffer 20% (GB) | K55: =K54*0.2 -> 5.767822266 | M55: Analog
B56: =IF(M29 >0,T53, " ") -> For IP Cameras, enter the IP camera streaming bit-rate! | H56: Total Storage needed | J56: =F24 -> 30 | K56: =SUM(K55+K54)*J56 -> 1038.208008 | M56: IP
B57: It is recommended to order your TVR 60 with the next highest storage configuration than that calculated. | M57: Unused
J58: Back to Cover

Sheet TVR 60 Load Table
A1: Input Devices | B1: Quantity | C1: Resolution | D1: Comments | G1: System Performance | I1: Power Factor | J1: Sum
A2: Analog Cameras | B2: 16 | C2: 4CIF | D2: =IF(B2/2+B3+B4*2+B5*2<=16,"Cameras can be added untill the System Performance Limit has been reached.","The System Performance Limit has been exceeded.") -> Cameras can be added untill the System Performance Limit has been reached. | G2: =B2 -> 16 | I2: =IF(B2<=8,8,G2) -> 16 | J2: =24-I2-(I3+I4+#REF!+I5) -> 
A3: SD IP Cameras | B3: 0 | C3: 4CIF | G3: =B3 -> 0 | I3: =B3*H11 -> 0
A4: HD 1.3 Mpx IP Cameras | B4: 0 | C4: HD 1280 x 720 | G4: =B4 -> 0 | I4: =B4*H12 -> 0
A5: HD 2 Mpx IP Cameras | B5: 0 | C5: HD 1600 x 1200 | G5: =B5 -> 0 | I5: =B5*H14 -> 0
D6: Back to Cover
A7: TVR 60 sample configurations are shown below
B8: Analog (4CIF) | C8: IP SD (4CIF) | D8: IP HD 720p (1280 x 720) | E8: IP HD 2 MPX (UXGA - 1600 x 1200) Not in Real Time Mode | F8: System Performance | G8: Resolutions | I8: 0
A9: Scenario 1 | B9: 16 | C9: 8 | F9: =SUM(B9:E9) -> 24 | G9: CIF | I9: 1
A10: Scenario 2 | B10: 16 | C10: 4 | D10: 2 | F10: 22 | G10: 2CIF | I10: 2
A11: Scenario 3 | B11: 16 | C11: 4 | E11: 2 | F11: 22 | G11: 4CIF | H11: =IF(MATCH(C2,G9:G11,0)<=4,1) -> 1 | I11: 3
A12: Scenario 4 | B12: 16 | D12: 4 | F12: 20 | G12: HD 1280 x 720 | H12: 2 | I12: 4
A13: Scenario 5 | B13: 16 | D13: 2 | E13: 2 | F13: 20 | G13: HD 1280 x 960 | H13: 4 | I13: 5
A14: Scenario 6 | B14: 16 | E14: 4 | F14: 20 | G14: HD 1600 x 1200 | H14: 4 | I14: 6
H15: 4 | I15: 7
A16: Scenario 1 | B16: 14 | C16: 5 | D16: 2 | F16: =SUM(B16:E16) -> 21 | I16: 8
A17: Scenario 2 | B17: 14 | C17: 5 | E17: 2 | F17: =SUM(B17:E17) -> 21 | I17: 9
A18: Scenario 3 | B18: 14 | C18: 1 | D18: 4 | F18: =SUM(B18:E18) -> 19 | I18: 10
A19: Scenario 4 | B19: 14 | C19: 1 | D19: 2 | E19: 2 | F19: =SUM(B19:E19) -> 19 | I19: 11
A20: Scenario 5 | B20: 14 | C20: 1 | E20: 4 | F20: =SUM(B20:E20) -> 19 | I20: 12
I21: 13
A22: Scenario 1 | B22: 12 | C22: 9 | F22: =SUM(B22:E22) -> 21 | I22: 14
A23: Scenario 2 | B23: 12 | C23: 6 | D23: 2 | F23: 20 | I23: 15
A24: Scenario 3 | B24: 12 | C24: 6 | E24: 2 | F24: 20 | I24: 16
A25: Scenario 4 | B25: 12 | D25: 5 | F25: 17
A26: Scenario 5 | B26: 12 | D26: 1 | E26: 4 | F26: 17
A27: Scenario 6 | B27: 12 | C27: 2 | E27: 4 | F27: 18
A29: Scenario 1 | B29: 10 | C29: 11 | F29: =SUM(B29:E29) -> 21
A30: Scenario 2 | B30: 10 | C30: 5 | D30: 3 | F30: 18
A31: Scenario 3 | B31: 10 | C31: 7 | E31: 2 | F31: 19
A32: Scenario 4 | B32: 10 | C32: 1 | D32: 5 | F32: 16
A33: Scenario 5 | B33: 10 | C33: 3 | D33: 2 | E33: 2 | F33: 17
A34: Scenario 6 | B34: 10 | C34: 1 | D34: 1 | E34: 4 | F34: 16
A36: Scenario 1 | B36: 8 | C36: 12 | F36: =SUM(B36:E36) -> 20
A37: Scenario 2 | B37: 8 | C37: 6 | D37: 3 | F37: 17
A38: Scenario 3 | B38: 8 | C38: 6 | D38: 1 | E38: 2 | F38: 17
A39: Scenario 4 | B39: 8 | D39: 6 | F39: 14
A40: Scenario 5 | B40: 8 | D40: 2 | E40: 4 | F40: 14
A41: Scenario 6 | B41: 8 | E41: 6 | F41: 14
A43: Scenario 1 | B43: 6 | C43: 13 | F43: =SUM(B43:E43) -> 19
A44: Scenario 2 | B44: 6 | C44: 7 | D44: 3 | F44: 16
A45: Scenario 3 | B45: 6 | C45: 7 | D45: 1 | E45: 2 | F45: 16
A46: Scenario 4 | B46: 6 | C46: 1 | D46: 6 | F46: 13
A47: Scenario 5 | B47: 6 | C47: 1 | D47: 2 | E47: 4 | F47: 13
A48: Scenario 6 | B48: 6 | C48: 1 | E48: 6 | F48: 13
A50: Scenario 1 | B50: 4 | C50: 14 | F50: =SUM(B50:E50) -> 18
A51: Scenario 2 | B51: 4 | C51: 8 | D51: 3 | F51: 15
A52: Scenario 3 | B52: 4 | C52: 2 | E52: 4 | F52: 10
A53: Scenario 4 | B53: 4 | D53: 7 | F53: 11
A54: Scenario 5 | B54: 4 | D54: 1 | E54: 6 | F54: 11
A55: Scenario 6 | B55: 4 | C55: 2 | E55: 6 | F55: 12
A57: Scenario 1 | B57: 2 | C57: 15 | F57: =SUM(B57:E57) -> 17
A58: Scenario 2 | B58: 2 | C58: 9 | D58: 3 | F58: 14
A59: Scenario 3 | B59: 2 | C59: 7 | E59: 4 | F59: 13
A60: Scenario 4 | B60: 2 | D60: 7 | F60: 9
A61: Scenario 5 | B61: 2 | C61: 1 | D61: 1 | E61: 6 | F61: 10
A62: Scenario 6 | B62: 2 | C62: 1 | D62: 1 | E62: 6 | F62: 10
A64: Scenario 1 | B64: 0 | C64: 16 | F64: =SUM(B64:E64) -> 16
A65: Scenario 2 | B65: 0 | C65: 8 | D65: 4 | F65: 12
A66: Scenario 3 | B66: 0 | C66: 8 | E66: 4 | F66: 12
A67: Scenario 4 | B67: 0 | D67: 8 | F67: 8
A68: Scenario 5 | B68: 0 | E68: 8 | F68: 8
A69: Scenario 6 | B69: 0 | E69: 8 | F69: 8

Sheet  (hidden)
A1: Days | B1: =#REF! ->  | H1: NTSC | I1: D1 | N1: 2CIF | S1: CIF
A2: #of Camera | B2: =#REF! ->  | I2: Frame Rates Mbps | N2: Field Rates Mbps | S2: Field Rates Mbps
D3: D1 | E3: 2CIF | F3: CIF | H3: Quality | I3: 30 | J3: 15 | K3: 10 | L3: 5 | M3: 2 | N3: 30 | O3: 15 | P3: 10 | Q3: 5 | R3: 2 | S3: 30 | T3: 15 | U3: 10 | V3: 5 | W3: 2
A4: Frame Per Second | B4: =#REF! ->  | D4: =INDEX($I$4:$M$12,MATCH(B5,$H$4:$H$12,0),MATCH(B4,$I$3:$M$3,0),MATCH(D3,$I$1:$I$1,0)) ->  | E4: =INDEX($N$4:$R$12,MATCH(B5,$H$4:$H$12,0),MATCH(B4,$N$3:$R$3,0),MATCH(E3,$N$1:$O$1,0)) ->  | F4: =INDEX($S$4:$W$12,MATCH(B5,$H$4:$H$12,0),MATCH(B4,$S$3:$W$3,0),MATCH(F3,$S$1:$S$1,0)) ->  | H4: 9 | I4: 3000000 | J4: =(I4/2) -> 1500000 | K4: =(I4/3) -> 1000000 | L4: =((I4/6)*0.3)+(I4/6) -> 650000 | M4: =((I4/15)*0.6)+(I4/15) -> 320000 | N4: =(I4/2) -> 1500000 | O4: =(N4/2) -> 750000 | P4: =(N4/3) -> 500000 | Q4: =((N4/6)*0.3)+(N4/6) -> 325000 | R4: =((N4/15)*0.6)+(N4/15) -> 160000 | S4: =(I4/3) -> 1000000 | T4: =(S4/2) -> 500000 | U4: =(S4/3) -> 333333.3333 | V4: =((S4/6)*0.3)+(S4/6) -> 216666.6667 | W4: =((S4/15)*0.6)+(S4/15) -> 106666.6667
A5: Quality | B5: =#REF! ->  | C5: with overhead | D5: =D4*0.148+D4 ->  | E5: =E4*0.148+E4 ->  | F5: =F4*0.148+F4 ->  | H5: 8 | I5: 2600000 | J5: 1300000 | K5: 866666.6667 | L5: 563333.3333 | M5: 277333.3333 | N5: 1300000 | O5: 650000 | P5: 433333.3333 | Q5: 281666.6667 | R5: 138666.6667 | S5: 866666.6667 | T5: 433333.3333 | U5: 288888.8889 | V5: 187777.7778 | W5: 92444.44444
A6: % Motion Detection | B6: =#REF! ->  | H6: 7 | I6: 2300000 | J6: 1150000 | K6: 766666.6667 | L6: 498333.3333 | M6: 245333.3333 | N6: 1150000 | O6: 575000 | P6: 383333.3333 | Q6: 249166.6667 | R6: 122666.6667 | S6: 766666.6667 | T6: 383333.3333 | U6: 255555.5556 | V6: 166111.1111 | W6: 81777.77778
H7: 6 | I7: 2000000 | J7: 1000000 | K7: 666666.6667 | L7: 433333.3333 | M7: 213333.3333 | N7: 1000000 | O7: 500000 | P7: 333333.3333 | Q7: 216666.6667 | R7: 106666.6667 | S7: 666666.6667 | T7: 333333.3333 | U7: 222222.2222 | V7: 144444.4444 | W7: 71111.11111
C8: Total Storage | D8: =(((86400*D5)/8))*B1*B2 ->  | E8: =(((86400*E5)/8))*B1*B2 ->  | F8: =(((86400*F5)/8))*B1*B2 ->  | H8: 5 | I8: 1720000 | J8: 860000 | K8: 573333.3333 | L8: 372666.6667 | M8: 183466.6667 | N8: 860000 | O8: 430000 | P8: 286666.6667 | Q8: 186333.3333 | R8: 91733.33333 | S8: 573333.3333 | T8: 286666.6667 | U8: 191111.1111 | V8: 124222.2222 | W8: 61155.55556
C9: w/motion | D9: =IF($B$6=0,D8,D8*$B$6) ->  | E9: =IF($B$6=0,E8,E8*$B$6) ->  | F9: =IF($B$6=0,F8,F8*$B$6) ->  | H9: 4 | I9: 1560000 | J9: 780000 | K9: 520000 | L9: 338000 | M9: 166400 | N9: 780000 | O9: 390000 | P9: 260000 | Q9: 169000 | R9: 83200 | S9: 520000 | T9: 260000 | U9: 173333.3333 | V9: 112666.6667 | W9: 55466.66667
H10: 3 | I10: 1320000 | J10: 660000 | K10: 440000 | L10: 286000 | M10: 140800 | N10: 660000 | O10: 330000 | P10: 220000 | Q10: 143000 | R10: 70400 | S10: 440000 | T10: 220000 | U10: 146666.6667 | V10: 95333.33333 | W10: 46933.33333
C11: with overhead | D11: =(((86400*D5)/8))*B1*B2 ->  | E11: =(((86400*E5)/8))*B1*B2 ->  | F11: =(((86400*F5)/8))*B1*B2 ->  | H11: 2 | I11: 1160000 | J11: 580000 | K11: 386666.6667 | L11: 251333.3333 | M11: 123733.3333 | N11: 580000 | O11: 290000 | P11: 193333.3333 | Q11: 125666.6667 | R11: 61866.66667 | S11: 386666.6667 | T11: 193333.3333 | U11: 128888.8889 | V11: 83777.77778 | W11: 41244.44444
D12: =D9/1000000000 ->  | E12: =E9/1000000000 ->  | F12: =F9/1000000000 ->  | H12: 1 | I12: 1000000 | J12: 500000 | K12: 333333.3333 | L12: 216666.6667 | M12: 106666.6667 | N12: 500000 | O12: 250000 | P12: 166666.6667 | Q12: 108333.3333 | R12: 53333.33333 | S12: 333333.3333 | T12: 166666.6667 | U12: 111111.1111 | V12: 72222.22222 | W12: 35555.55556
D13: =D9/1000000000000 ->  | E13: =E9/1000000000000 ->  | F13: =F9/1000000000000 -> 
X14: TOTALS
A15: NTSC | B15: D1 | G15: 2CIF | L15: CIF | AA15: Table Update
B16: Frame Rates Mbps | G16: Field Rates Mbps | L16: Field Rates Mbps
A17: Quality | B17: D130 | C17: D115 | D17: D110 | E17: D15 | F17: D12 | G17: 2CIF30 | H17: 2CIF15 | I17: 2CIF10 | J17: 2CIF5 | K17: 2CIF2 | L17: CIF30 | M17: CIF15 | N17: CIF10 | O17: CIF5 | P17: CIF2 | X17: # CHANNELS | Y17: =#REF!&#REF! ->  | AA17: =#REF!&#REF! -> 
A18: Quality 9 | B18: 3000000 | C18: =(B18/2) -> 1500000 | D18: =(B18/3) -> 1000000 | E18: =((B18/6)*0.3)+(B18/6) -> 650000 | F18: =((B18/15)*0.6)+(B18/15) -> 320000 | G18: =(B18/2) -> 1500000 | H18: =(G18/2) -> 750000 | I18: =(G18/3) -> 500000 | J18: =((G18/6)*0.3)+(G18/6) -> 325000 | K18: =((G18/15)*0.6)+(G18/15) -> 160000 | L18: =(B18/3) -> 1000000 | M18: =(L18/2) -> 500000 | N18: =(L18/3) -> 333333.3333 | O18: =((L18/6)*0.3)+(L18/6) -> 216666.6667 | P18: =((L18/15)*0.6)+(L18/15) -> 106666.6667 | AA18: =RIGHT(AA17, LEN(AA17)-7) -> 
A19: Quality 8 | B19: 2600000 | C19: 1300000 | D19: 866666.6667 | E19: 563333.3333 | F19: 277333.3333 | G19: 1300000 | H19: 650000 | I19: 433333.3333 | J19: 281666.6667 | K19: 138666.6667 | L19: 866666.6667 | M19: 433333.3333 | N19: 288888.8889 | O19: 187777.7778 | P19: 92444.44444
A20: Quality 7 | B20: 2300000 | C20: 1150000 | D20: 766666.6667 | E20: 498333.3333 | F20: 245333.3333 | G20: 1150000 | H20: 575000 | I20: 383333.3333 | J20: 249166.6667 | K20: 122666.6667 | L20: 766666.6667 | M20: 383333.3333 | N20: 255555.5556 | O20: 166111.1111 | P20: 81777.77778
A21: Quality 6 | B21: 2000000 | C21: 1000000 | D21: 666666.6667 | E21: 433333.3333 | F21: 213333.3333 | G21: 1000000 | H21: 500000 | I21: 333333.3333 | J21: 216666.6667 | K21: 106666.6667 | L21: 666666.6667 | M21: 333333.3333 | N21: 222222.2222 | O21: 144444.4444 | P21: 71111.11111 | X21: Storage In GB | Y21: =INDEX($X$37:$AQ$37,MATCH(Y17,$X$27:$AQ$27,0)) -> 
A22: Quality 5 | B22: 1720000 | C22: 860000 | D22: 573333.3333 | E22: 372666.6667 | F22: 183466.6667 | G22: 860000 | H22: 430000 | I22: 286666.6667 | J22: 186333.3333 | K22: 91733.33333 | L22: 573333.3333 | M22: 286666.6667 | N22: 191111.1111 | O22: 124222.2222 | P22: 61155.55556 | X22: Storage In TB | Y22: =INDEX($X$38:$AQ$38,MATCH(Y17,$X$27:$AQ$27,0)) -> 
A23: Quality 4 | B23: 1560000 | C23: 780000 | D23: 520000 | E23: 338000 | F23: 166400 | G23: 780000 | H23: 390000 | I23: 260000 | J23: 169000 | K23: 83200 | L23: 520000 | M23: 260000 | N23: 173333.3333 | O23: 112666.6667 | P23: 55466.66667
A24: Quality 3 | B24: 1320000 | C24: 660000 | D24: 440000 | E24: 286000 | F24: 140800 | G24: 660000 | H24: 330000 | I24: 220000 | J24: 143000 | K24: 70400 | L24: 440000 | M24: 220000 | N24: 146666.6667 | O24: 95333.33333 | P24: 46933.33333 | X24: Bandwidth In Mbps | Y24: =INDEX($X$40:$AQ$40,MATCH(Y17,$X$27:$AQ$27,0)) -> 
A25: Quality 2 | B25: 1160000 | C25: 580000 | D25: 386666.6667 | E25: 251333.3333 | F25: 123733.3333 | G25: 580000 | H25: 290000 | I25: 193333.3333 | J25: 125666.6667 | K25: 61866.66667 | L25: 386666.6667 | M25: 193333.3333 | N25: 128888.8889 | O25: 83777.77778 | P25: 41244.44444 | X25: Bandwidth in kbps | Y25: =INDEX($X$41:$AQ$41,MATCH(Y17,$X$27:$AQ$27,0)) -> 
A26: Quality 1 | B26: 1000000 | C26: 500000 | D26: 333333.3333 | E26: 216666.6667 | F26: 106666.6667 | G26: 500000 | H26: 250000 | I26: 166666.6667 | J26: 108333.3333 | K26: 53333.33333 | L26: 333333.3333 | M26: 166666.6667 | N26: 111111.1111 | O26: 72222.22222 | P26: 35555.55556
B27: 1 | C27: 2 | D27: 3 | E27: 4 | F27: 5 | G27: 6 | H27: 7 | I27: 8 | J27: 9 | K27: 10 | L27: 11 | M27: 12 | N27: 13 | O27: 14 | P27: 15 | Q27: 16 | R27: 17 | S27: 18 | T27: 19 | U27: 20 | V27: TOTAL | X27: Cameras1 | Y27: Cameras2 | Z27: Cameras3 | AA27: Cameras4 | AB27: Cameras5 | AC27: Cameras6 | AD27: Cameras7 | AE27: Cameras8 | AF27: Cameras9 | AG27: Cameras10 | AH27: Cameras11 | AI27: Cameras12 | AJ27: Cameras13 | AK27: Cameras14 | AL27: Cameras15 | AM27: Cameras16 | AN27: Cameras17 | AO27: Cameras18 | AP27: Cameras19 | AQ27: Cameras20
A28: Days | B28: =#REF! -> 
A29: Res/fps | B29: =#REF!&#REF! ->  | C29: =#REF!&#REF! ->  | D29: =#REF!&#REF! ->  | E29: =#REF!&#REF! ->  | F29: =#REF!&#REF! ->  | G29: =#REF!&#REF! ->  | H29: =#REF!&#REF! ->  | I29: =#REF!&#REF! ->  | J29: =#REF!&#REF! ->  | K29: =#REF!&#REF! ->  | L29: =#REF!&#REF! ->  | M29: =#REF!&#REF! ->  | N29: =#REF!&#REF! ->  | O29: =#REF!&#REF! ->  | P29: =#REF!&#REF! ->  | Q29: =#REF!&#REF! ->  | R29: =#REF!&#REF! ->  | S29: =#REF!&#REF! ->  | T29: =#REF!&#REF! ->  | U29: =#REF!&#REF! -> 
A30: Quality | B30: =#REF!&#REF! ->  | C30: =#REF!&#REF! ->  | D30: =#REF!&#REF! ->  | E30: =#REF!&#REF! ->  | F30: =#REF!&#REF! ->  | G30: =#REF!&#REF! ->  | H30: =#REF!&#REF! ->  | I30: =#REF!&#REF! ->  | J30: =#REF!&#REF! ->  | K30: =#REF!&#REF! ->  | L30: =#REF!&#REF! ->  | M30: =#REF!&#REF! ->  | N30: =#REF!&#REF! ->  | O30: =#REF!&#REF! ->  | P30: =#REF!&#REF! ->  | Q30: =#REF!&#REF! ->  | R30: =#REF!&#REF! ->  | S30: =#REF!&#REF! ->  | T30: =#REF!&#REF! ->  | U30: =#REF!&#REF! -> 
A31: % Motion | B31: =#REF! ->  | C31: =#REF! ->  | D31: =#REF! ->  | E31: =#REF! ->  | F31: =#REF! ->  | G31: =#REF! ->  | H31: =#REF! ->  | I31: =#REF! ->  | J31: =#REF! ->  | K31: =#REF! ->  | L31: =#REF! ->  | M31: =#REF! ->  | N31: =#REF! ->  | O31: =#REF! ->  | P31: =#REF! ->  | Q31: =#REF! ->  | R31: =#REF! ->  | S31: =#REF! ->  | T31: =#REF! ->  | U31: =#REF! -> 
A33: Bitrate | B33: =INDEX($B$18:$P$26,MATCH(B30,$A$18:$A$26,0),MATCH(B29,$B$17:$P$17,0)) ->  | V33: =SUM(B33:U33) ->  | W33: Bitrate | X33: =SUM(B33:B33) ->  | Y33: =SUM(B33:C33) ->  | Z33: =SUM(B33:D33) ->  | AA33: =SUM(B33:E33) ->  | AB33: =SUM(B33:F33) ->  | AC33: =SUM(B33:G33) ->  | AD33: =SUM(B33:H33) ->  | AE33: =SUM(B33:I33) ->  | AF33: =SUM(B33:J33) ->  | AG33: =SUM(B33:K33) ->  | AH33: =SUM(B33:L33) ->  | AI33: =SUM(B33:M33) ->  | AJ33: =SUM(B33:N33) ->  | AK33: =SUM(B33:O33) ->  | AL33: =SUM(B33:P33) ->  | AM33: =SUM(B33:Q33) ->  | AN33: =SUM(B33:R33) ->  | AO33: =SUM(B33:S33) ->  | AP33: =SUM(B33:T33) ->  | AQ33: =SUM(B33:U33) -> 
A34: Bitrate with Overhead | B34: =B33*0.148+B33 ->  | V34: =SUM(B34:U34) ->  | W34: Bitrate with Overhead | X34: =SUM(B34:B34) ->  | Y34: =SUM(B34:C34) ->  | Z34: =SUM(B34:D34) ->  | AA34: =SUM(B34:E34) ->  | AB34: =SUM(B34:F34) ->  | AC34: =SUM(B34:G34) ->  | AD34: =SUM(B34:H34) ->  | AE34: =SUM(B34:I34) ->  | AF34: =SUM(B34:J34) ->  | AG34: =SUM(B34:K34) ->  | AH34: =SUM(B34:L34) ->  | AI34: =SUM(B34:M34) ->  | AJ34: =SUM(B34:N34) ->  | AK34: =SUM(B34:O34) ->  | AL34: =SUM(B34:P34) ->  | AM34: =SUM(B34:Q34) ->  | AN34: =SUM(B34:R34) ->  | AO34: =SUM(B34:S34) ->  | AP34: =SUM(B34:T34) ->  | AQ34: =SUM(B34:U34) -> 
A35: Storage | B35: =(((86400*B34)/8))*B28 ->  | C35: =(((86400*C34)/8))*B28 ->  | D35: =(((86400*D34)/8))*B28 ->  | E35: =(((86400*E34)/8))*B28 ->  | F35: =(((86400*F34)/8))*B28 ->  | G35: =(((86400*G34)/8))*B28 ->  | H35: =(((86400*H34)/8))*B28 ->  | I35: =(((86400*I34)/8))*B28 ->  | J35: =(((86400*J34)/8))*B28 ->  | K35: =(((86400*K34)/8))*B28 ->  | L35: =(((86400*L34)/8))*B28 ->  | M35: =(((86400*M34)/8))*B28 ->  | N35: =(((86400*N34)/8))*B28 ->  | O35: =(((86400*O34)/8))*B28 ->  | P35: =(((86400*P34)/8))*B28 ->  | Q35: =(((86400*Q34)/8))*B28 ->  | R35: =(((86400*R34)/8))*B28 ->  | S35: =(((86400*S34)/8))*B28 ->  | T35: =(((86400*T34)/8))*B28 ->  | U35: =(((86400*U34)/8))*B28 ->  | V35: =SUM(B35:U35) ->  | W35: Storage | X35: =SUM(B35:B35) ->  | Y35: =SUM(B35:C35) ->  | Z35: =SUM(B35:D35) ->  | AA35: =SUM(B35:E35) ->  | AB35: =SUM(B35:F35) ->  | AC35: =SUM(B35:G35) ->  | AD35: =SUM(B35:H35) ->  | AE35: =SUM(B35:I35) ->  | AF35: =SUM(B35:J35) ->  | AG35: =SUM(B35:K35) ->  | AH35: =SUM(B35:L35) ->  | AI35: =SUM(B35:M35) ->  | AJ35: =SUM(B35:N35) ->  | AK35: =SUM(B35:O35) ->  | AL35: =SUM(B35:P35) ->  | AM35: =SUM(B35:Q35) ->  | AN35: =SUM(B35:R35) ->  | AO35: =SUM(B35:S35) ->  | AP35: =SUM(B35:T35) ->  | AQ35: =SUM(B35:U35) -> 
A36: Storage with Motion | B36: =IF($B$31=0,B35,B35*$B$31) ->  | C36: =IF($C$31=0,C35,C35*$C$31) ->  | D36: =IF($D$31=0,D35,D35*$D$31) ->  | E36: =IF($E$31=0,E35,E35*$E$31) ->  | F36: =IF($F$31=0,F35,F35*$F$31) ->  | G36: =IF($G$31=0,G35,G35*$G$31) ->  | H36: =IF($H$31=0,H35,H35*$H$31) ->  | I36: =IF($I$31=0,I35,I35*$I$31) ->  | J36: =IF($J$31=0,J35,J35*$J$31) ->  | K36: =IF($K$31=0,K35,K35*$K$31) ->  | L36: =IF($L$31=0,L35,L35*$L$31) ->  | M36: =IF($M$31=0,M35,M35*$M$31) ->  | N36: =IF($N$31=0,N35,N35*$N$31) ->  | O36: =IF($O$31=0,O35,O35*$O$31) ->  | P36: =IF($P$31=0,P35,P35*$P$31) ->  | Q36: =IF($Q$31=0,Q35,Q35*$Q$31) ->  | R36: =IF($R$31=0,R35,R35*$R$31) ->  | S36: =IF($S$31=0,S35,S35*$S$31) ->  | T36: =IF($S$31=0,T35,T35*$S$31) ->  | U36: =IF($S$31=0,U35,U35*$S$31) ->  | V36: =SUM(B36:U36) ->  | W36: Storage with Motion | X36: =SUM(B36:B36) ->  | Y36: =SUM(B36:C36) ->  | Z36: =SUM(B36:D36) ->  | AA36: =SUM(B36:E36) ->  | AB36: =SUM(B36:F36) ->  | AC36: =SUM(B36:G36) ->  | AD36: =SUM(B36:H36) ->  | AE36: =SUM(B36:I36) ->  | AF36: =SUM(B36:J36) ->  | AG36: =SUM(B36:K36) ->  | AH36: =SUM(B36:L36) ->  | AI36: =SUM(B36:M36) ->  | AJ36: =SUM(B36:N36) ->  | AK36: =SUM(B36:O36) ->  | AL36: =SUM(B36:P36) ->  | AM36: =SUM(B36:Q36) ->  | AN36: =SUM(B36:R36) ->  | AO36: =SUM(B36:S36) ->  | AP36: =SUM(B36:T36) ->  | AQ36: =SUM(B36:U36) -> 
A37: Storage In GB | B37: =B36/1000000000 ->  | W37: Storage In GB | X37: =X36/1000000000 -> 
A38: Storage In TB | B38: =B36/1000000000000 ->  | W38: Storage In TB | X38: =X36/1000000000000 -> 
A40: Bandwidth In Mbps | B40: =B34/1000000 ->  | W40: Bandwidth In Mbps | X40: =X34/1000000 -> 
A41: Bandwidth in kbps | B41: =B40*1000 ->  | W41: Bandwidth in kbps | X41: =X40*1000 -> 
A46: SymSafe PRO
A48: NTSC | B48: D1 Resolution | H48: 2CIF Resolution | N48: CIF Resolution
B49: Frame Rates Mbps | H49: Field Rates Mbps | N49: Field Rates Mbps
A50: Quality | B50: 30 | C50: 15 | D50: 10 | E50: 7.5 | F50: 5 | G50: 2 | H50: 30 | I50: 15 | J50: 10 | K50: 7.5 | L50: 5 | M50: 2 | N50: 30 | O50: 15 | P50: 10 | Q50: 7.5 | R50: 5 | S50: 2
A51: 6 | B51: 3000000 | C51: =(B51/2) -> 1500000 | D51: =(B51/3) -> 1000000 | E51: =B51/4 -> 750000 | F51: =((B51/6)*0.3)+(B51/6) -> 650000 | G51: =((B51/15)*0.6)+(B51/15) -> 320000 | H51: =(B51/2) -> 1500000 | I51: =(H51/2) -> 750000 | J51: =(H51/3) -> 500000 | K51: =(H51/4) -> 375000 | L51: =((H51/6)*0.3)+(H51/6) -> 325000 | M51: =((H51/15)*0.6)+(H51/15) -> 160000 | N51: =(B51/3) -> 1000000 | O51: =(N51/2) -> 500000 | P51: =(N51/3) -> 333333.3333 | Q51: =(N51/4) -> 250000 | R51: =((N51/6)*0.3)+(N51/6) -> 216666.6667 | S51: =((N51/15)*0.6)+(N51/15) -> 106666.6667
A52: 5 | B52: 2300000 | C52: 1150000 | D52: 766666.6667 | E52: 575000 | F52: 498333.3333 | G52: 245333.3333 | H52: 1150000 | I52: 575000 | J52: 383333.3333 | K52: 287500 | L52: 249166.6667 | M52: 122666.6667 | N52: 766666.6667 | O52: 383333.3333 | P52: 255555.5556 | Q52: 191666.6667 | R52: 166111.1111 | S52: 81777.77778
A53: 4 | B53: 2000000 | C53: 1000000 | D53: 666666.6667 | E53: 500000 | F53: 433333.3333 | G53: 213333.3333 | H53: 1000000 | I53: 500000 | J53: 333333.3333 | K53: 250000 | L53: 216666.6667 | M53: 106666.6667 | N53: 666666.6667 | O53: 333333.3333 | P53: 222222.2222 | Q53: 166666.6667 | R53: 144444.4444 | S53: 71111.11111
A54: 3 | B54: 1720000 | C54: 860000 | D54: 573333.3333 | E54: 430000 | F54: 372666.6667 | G54: 183466.6667 | H54: 860000 | I54: 430000 | J54: 286666.6667 | K54: 215000 | L54: 186333.3333 | M54: 91733.33333 | N54: 573333.3333 | O54: 286666.6667 | P54: 191111.1111 | Q54: 143333.3333 | R54: 124222.2222 | S54: 61155.55556
A55: 2 | B55: 1320000 | C55: 660000 | D55: 440000 | E55: 330000 | F55: 286000 | G55: 140800 | H55: 660000 | I55: 330000 | J55: 220000 | K55: 165000 | L55: 143000 | M55: 70400 | N55: 440000 | O55: 220000 | P55: 146666.6667 | Q55: 110000 | R55: 95333.33333 | S55: 46933.33333
A56: 1 | B56: 1160000 | C56: 580000 | D56: 386666.6667 | E56: 290000 | F56: 251333.3333 | G56: 123733.3333 | H56: 580000 | I56: 290000 | J56: 193333.3333 | K56: 145000 | L56: 125666.6667 | M56: 61866.66667 | N56: 386666.6667 | O56: 193333.3333 | P56: 128888.8889 | Q56: 96666.66667 | R56: 83777.77778 | S56: 41244.44444
A58: Days | B58: =#REF! -> 
A59: #of Camera | B59: =#REF! ->  | E59: D1 | F59: 2CIF | G59: CIF
E60: =INDEX($C$51:$G$56,MATCH(B62,$A$51:$A$56,0),MATCH(B61,$C$50:$G$50,0)) ->  | F60: =INDEX($H$51:$M$56,MATCH(B62,$A$51:$A$56,0),MATCH(B61,$H$50:$M$50,0)) ->  | G60: =INDEX($N$51:$S$56,MATCH(B62,$A$51:$A$56,0),MATCH(B61,$N$50:$S$50,0)) -> 
A61: Frame Per Second | B61: =#REF! ->  | D61: with overhead | E61: =E60*0.148+E60 ->  | F61: =F60*0.148+F60 ->  | G61: =G60*0.148+G60 -> 
A62: Quality | B62: =#REF! -> 
A63: % Motion Detection | B63: =#REF! -> 
D64: Total Storage | E64: =(((86400*E61)/8))*B58*B59 ->  | F64: =(((86400*F61)/8))*B58*B59 ->  | G64: =(((86400*G61)/8))*B58*B59 -> 
D65: w/motion | E65: =IF($B$63=0,E64,E64*$B$63) ->  | F65: =IF($B$63=0,F64,F64*$B$63) ->  | G65: =IF($B$63=0,G64,G64*$B$63) -> 
D67: with overhead | E67: =(((86400*E61)/8))*B58*B59 ->  | F67: =(((86400*F61)/8))*B58*B59 ->  | G67: =(((86400*G61)/8))*B58*B59 -> 
E68: =E65/1000000000 ->  | F68: =F65/1000000000 ->  | G68: =G65/1000000000 -> 
E69: =E65/1000000000000 ->  | F69: =F65/1000000000000 ->  | G69: =G65/1000000000000 ->  | U69: TOTALS
A71: NTSC | B71: D1 Resolution | H71: 2CIF Resolution | N71: CIF Resolution
B72: Frame Rates Mbps | H72: Field Rates Mbps | N72: Field Rates Mbps | U72: # CHANNELS | V72: =#REF! -> 
A73: Quality | B73: 30 | C73: D115 | D73: D110 | E73: D17.5 | F73: D15 | G73: D12 | H73: 2CIF30 | I73: 2CIF15 | J73: 2CIF10 | K73: 2CIF7.5 | L73: 2CIF5 | M73: 2CIF2 | N73: CIF30 | O73: CIF15 | P73: CIF10 | Q73: CIF7.5 | R73: CIF5 | S73: CIF2
A74: Quality 6 | B74: 3000000 | C74: =(B74/2) -> 1500000 | D74: =(B74/3) -> 1000000 | E74: =B74/4 -> 750000 | F74: =((B74/6)*0.3)+(B74/6) -> 650000 | G74: =((B74/15)*0.6)+(B74/15) -> 320000 | H74: =(B74/2) -> 1500000 | I74: =(H74/2) -> 750000 | J74: =(H74/3) -> 500000 | K74: =(H74/4) -> 375000 | L74: =((H74/6)*0.3)+(H74/6) -> 325000 | M74: =((H74/15)*0.6)+(H74/15) -> 160000 | N74: =(B74/3) -> 1000000 | O74: =(N74/2) -> 500000 | P74: =(N74/3) -> 333333.3333 | Q74: =(N74/4) -> 250000 | R74: =((N74/6)*0.3)+(N74/6) -> 216666.6667 | S74: =((N74/15)*0.6)+(N74/15) -> 106666.6667
A75: Quality 5 | B75: 2300000 | C75: 1150000 | D75: 766666.6667 | E75: 575000 | F75: 498333.3333 | G75: 245333.3333 | H75: 1150000 | I75: 575000 | J75: 383333.3333 | K75: 287500 | L75: 249166.6667 | M75: 122666.6667 | N75: 766666.6667 | O75: 383333.3333 | P75: 255555.5556 | Q75: 191666.6667 | R75: 166111.1111 | S75: 81777.77778
A76: Quality 4 | B76: 2000000 | C76: 1000000 | D76: 666666.6667 | E76: 500000 | F76: 433333.3333 | G76: 213333.3333 | H76: 1000000 | I76: 500000 | J76: 333333.3333 | K76: 250000 | L76: 216666.6667 | M76: 106666.6667 | N76: 666666.6667 | O76: 333333.3333 | P76: 222222.2222 | Q76: 166666.6667 | R76: 144444.4444 | S76: 71111.11111 | U76: Storage In GB | V76: =INDEX($U$92:$AL$92,MATCH(V72,$U$82:$AL$82,0)) -> 
A77: Quality 3 | B77: 1720000 | C77: 860000 | D77: 573333.3333 | E77: 430000 | F77: 372666.6667 | G77: 183466.6667 | H77: 860000 | I77: 430000 | J77: 286666.6667 | K77: 215000 | L77: 186333.3333 | M77: 91733.33333 | N77: 573333.3333 | O77: 286666.6667 | P77: 191111.1111 | Q77: 143333.3333 | R77: 124222.2222 | S77: 61155.55556 | U77: Storage In TB | V77: =INDEX($U$93:$AL$93,MATCH(V72,$U$82:$AL$82,0)) -> 
A78: Quality 2 | B78: 1320000 | C78: 660000 | D78: 440000 | E78: 330000 | F78: 286000 | G78: 140800 | H78: 660000 | I78: 330000 | J78: 220000 | K78: 165000 | L78: 143000 | M78: 70400 | N78: 440000 | O78: 220000 | P78: 146666.6667 | Q78: 110000 | R78: 95333.33333 | S78: 46933.33333
A79: Quality 1 | B79: 1160000 | C79: 580000 | D79: 386666.6667 | E79: 290000 | F79: 251333.3333 | G79: 123733.3333 | H79: 580000 | I79: 290000 | J79: 193333.3333 | K79: 145000 | L79: 125666.6667 | M79: 61866.66667 | N79: 386666.6667 | O79: 193333.3333 | P79: 128888.8889 | Q79: 96666.66667 | R79: 83777.77778 | S79: 41244.44444 | U79: Bandwidth In Mbps | V79: =INDEX($U$95:$AL$95,MATCH(V72,$U$82:$AL$82,0)) -> 
U80: Bandwidth in kbps | V80: =INDEX($U$96:$AL$96,MATCH(V72,$U$72:$AL$72,0)) -> 
B82: 1 | C82: 2 | D82: 3 | E82: 4 | F82: 5 | G82: 6 | H82: 7 | I82: 8 | J82: 9 | K82: 10 | L82: 11 | M82: 12 | N82: 13 | O82: 14 | P82: 15 | Q82: 16 | R82: 17 | S82: 18 | U82: 1 | V82: 2 | W82: 3 | X82: 4 | Y82: 5 | Z82: 6 | AA82: 7 | AB82: 8 | AC82: 9 | AD82: 10 | AE82: 11 | AF82: 12 | AG82: 13 | AH82: 14 | AI82: 15 | AJ82: 16 | AK82: 17 | AL82: 18
A83: Days | B83: =#REF! -> 
A84: Res/fps | B84: =#REF!&#REF! ->  | C84: =#REF!&#REF! ->  | D84: =#REF!&#REF! ->  | E84: =#REF!&#REF! ->  | F84: =#REF!&#REF! ->  | G84: =#REF!&#REF! ->  | H84: =#REF!&#REF! ->  | I84: =#REF!&#REF! ->  | J84: =#REF!&#REF! ->  | K84: =#REF!&#REF! ->  | L84: =#REF!&#REF! ->  | M84: =#REF!&#REF! ->  | N84: =#REF!&#REF! ->  | O84: =#REF!&#REF! ->  | P84: =#REF!&#REF! ->  | Q84: cif15 | R84: =#REF!&#REF! ->  | S84: =#REF!&#REF! -> 
A85: Quality | B85: =#REF!&#REF! ->  | C85: =#REF!&#REF! ->  | D85: =#REF!&#REF! ->  | E85: =#REF!&#REF! ->  | F85: =#REF!&#REF! ->  | G85: =#REF!&#REF! ->  | H85: =#REF!&#REF! ->  | I85: =#REF!&#REF! ->  | J85: =#REF!&#REF! ->  | K85: =#REF!&#REF! ->  | L85: =#REF!&#REF! ->  | M85: =#REF!&#REF! ->  | N85: =#REF!&#REF! ->  | O85: =#REF!&#REF! ->  | P85: =#REF!&#REF! ->  | Q85: =#REF!&#REF! ->  | R85: =#REF!&#REF! ->  | S85: =#REF!&#REF! -> 
A86: % Motion | B86: =#REF! ->  | C86: =#REF! ->  | D86: =#REF! ->  | E86: =#REF! ->  | F86: =#REF! ->  | G86: =#REF! ->  | H86: =#REF! ->  | I86: =#REF! ->  | J86: =#REF! ->  | K86: =#REF! ->  | L86: =#REF! ->  | M86: =#REF! ->  | N86: =#REF! ->  | O86: =#REF! ->  | P86: =#REF! ->  | Q86: =#REF! ->  | R86: =#REF! ->  | S86: =#REF! -> 
A88: Bitrate | B88: =INDEX($C$74:$S$79,MATCH(B85,$A$74:$A$79,0),MATCH(B84,$C$73:$S$73,0)) ->  | C88: =INDEX($C$74:$S$79,MATCH(C85,$A$74:$A$79,0),MATCH(C84,$C$73:$S$73,0)) ->  | T88: Bitrate | U88: =SUM(B88:B88) ->  | V88: =SUM(B88:C88) ->  | W88: =SUM(B88:D88) ->  | X88: =SUM(B88:E88) ->  | Y88: =SUM(B88:F88) ->  | Z88: =SUM(B88:G88) ->  | AA88: =SUM(B88:H88) ->  | AB88: =SUM(B88:I88) ->  | AC88: =SUM(B88:J88) ->  | AD88: =SUM(B88:K88) ->  | AE88: =SUM(B88:L88) ->  | AF88: =SUM(B88:M88) ->  | AG88: =SUM(B88:N88) ->  | AH88: =SUM(B88:O88) ->  | AI88: =SUM(B88:P88) ->  | AJ88: =SUM(B88:Q88) ->  | AK88: =SUM(B88:R88) ->  | AL88: =SUM(B88:S88) -> 
A89: Bitrate with Overhead | B89: =B88*0.148+B88 ->  | T89: Bitrate with Overhead | U89: =SUM(B89:B89) ->  | V89: =SUM(B89:C89) ->  | W89: =SUM(B89:D89) ->  | X89: =SUM(B89:E89) ->  | Y89: =SUM(B89:F89) ->  | Z89: =SUM(B89:G89) ->  | AA89: =SUM(B89:H89) ->  | AB89: =SUM(B89:I89) ->  | AC89: =SUM(B89:J89) ->  | AD89: =SUM(B89:K89) ->  | AE89: =SUM(B89:L89) ->  | AF89: =SUM(B89:M89) ->  | AG89: =SUM(B89:N89) ->  | AH89: =SUM(B89:O89) ->  | AI89: =SUM(B89:P89) ->  | AJ89: =SUM(B89:Q89) ->  | AK89: =SUM(B89:R89) ->  | AL89: =SUM(B89:S89) -> 
A90: Storage | B90: =(((86400*B89)/8))*B83 ->  | C90: =(((86400*C89)/8))*B83 ->  | D90: =(((86400*D89)/8))*B83 ->  | E90: =(((86400*E89)/8))*B83 ->  | F90: =(((86400*F89)/8))*B83 ->  | G90: =(((86400*G89)/8))*B83 ->  | H90: =(((86400*H89)/8))*B83 ->  | I90: =(((86400*I89)/8))*B83 ->  | J90: =(((86400*J89)/8))*B83 ->  | K90: =(((86400*K89)/8))*B83 ->  | L90: =(((86400*L89)/8))*B83 ->  | M90: =(((86400*M89)/8))*B83 ->  | N90: =(((86400*N89)/8))*B83 ->  | O90: =(((86400*O89)/8))*B83 ->  | P90: =(((86400*P89)/8))*B83 ->  | Q90: =(((86400*Q89)/8))*B83 ->  | R90: =(((86400*R89)/8))*B83 ->  | S90: =(((86400*S89)/8))*B83 ->  | T90: Storage | U90: =SUM(B90:B90) ->  | V90: =SUM(B90:C90) ->  | W90: =SUM(B90:D90) ->  | X90: =SUM(B90:E90) ->  | Y90: =SUM(B90:F90) ->  | Z90: =SUM(B90:G90) ->  | AA90: =SUM(B90:H90) ->  | AB90: =SUM(B90:I90) ->  | AC90: =SUM(B90:J90) ->  | AD90: =SUM(B90:K90) ->  | AE90: =SUM(B90:L90) ->  | AF90: =SUM(B90:M90) ->  | AG90: =SUM(B90:N90) ->  | AH90: =SUM(B90:O90) ->  | AI90: =SUM(B90:P90) ->  | AJ90: =SUM(B90:Q90) ->  | AK90: =SUM(B90:R90) ->  | AL90: =SUM(B90:S90) -> 
A91: Storage with Motion | B91: =IF($B$86=0,B90,B90*$B$86) ->  | C91: =IF($C$86=0,C90,C90*$C$86) ->  | D91: =IF($D$86=0,D90,D90*$D$86) ->  | E91: =IF($E$86=0,E90,E90*$E$86) ->  | F91: =IF($F$86=0,F90,F90*$F$86) ->  | G91: =IF($G$86=0,G90,G90*$G$86) ->  | H91: =IF($H$86=0,H90,H90*$H$86) ->  | I91: =IF($I$86=0,I90,I90*$I$86) ->  | J91: =IF($J$86=0,J90,J90*$J$86) ->  | K91: =IF($K$86=0,K90,K90*$K$86) ->  | L91: =IF($L$86=0,L90,L90*$L$86) ->  | M91: =IF($M$86=0,M90,M90*$M$86) ->  | N91: =IF($N$86=0,N90,N90*$N$86) ->  | O91: =IF($O$86=0,O90,O90*$O$86) ->  | P91: =IF($P$86=0,P90,P90*$P$86) ->  | Q91: =IF($Q$86=0,Q90,Q90*$Q$86) ->  | R91: =IF($R$86=0,R90,R90*$R$86) ->  | S91: =IF($S$86=0,S90,S90*$S$86) ->  | T91: Storage with Motion | U91: =SUM(B91:B91) ->  | V91: =SUM(B91:C91) ->  | W91: =SUM(B91:D91) ->  | X91: =SUM(B91:E91) ->  | Y91: =SUM(B91:F91) ->  | Z91: =SUM(B91:G91) ->  | AA91: =SUM(B91:H91) ->  | AB91: =SUM(B91:I91) ->  | AC91: =SUM(B91:J91) ->  | AD91: =SUM(B91:K91) ->  | AE91: =SUM(B91:L91) ->  | AF91: =SUM(B91:M91) ->  | AG91: =SUM(B91:N91) ->  | AH91: =SUM(B91:O91) ->  | AI91: =SUM(B91:P91) ->  | AJ91: =SUM(B91:Q91) ->  | AK91: =SUM(B91:R91) ->  | AL91: =SUM(B91:S91) -> 
A92: Storage In GB | B92: =B91/1000000000 ->  | T92: Storage In GB | U92: =U91/1000000000 -> 
A93: Storage In TB | B93: =B91/1000000000000 ->  | T93: Storage In TB | U93: =U91/1000000000000 -> 
A95: Bandwidth In Mbps | B95: =B89/1000000 ->  | T95: Bandwidth In Mbps | U95: =U89/1000000 -> 
A96: Bandwidth in kbps | B96: =B95*1000 ->  | T96: Bandwidth in kbps | U96: =U95*1000 -> 
A100: SymSafe
A102: NTSC | B102: D1 Resolution | H102: 2CIF Resolution | N102: CIF Resolution
B103: Frame Rates Mbps | H103: Field Rates Mbps | N103: Field Rates Mbps
A104: Quality | B104: 30 | C104: 15 | D104: 10 | E104: 7.5 | F104: 5 | G104: 2 | H104: 30 | I104: 15 | J104: 10 | K104: 7.5 | L104: 5 | M104: 2 | N104: 30 | O104: 15 | P104: 10 | Q104: 7.5 | R104: 5 | S104: 2
A105: 6 | B105: 3000000 | C105: =(B105/2) -> 1500000 | D105: =(B105/3) -> 1000000 | E105: =B105/4 -> 750000 | F105: =((B105/6)*0.3)+(B105/6) -> 650000 | G105: =((B105/15)*0.6)+(B105/15) -> 320000 | H105: =(B105/2) -> 1500000 | I105: =(H105/2) -> 750000 | J105: =(H105/3) -> 500000 | K105: =(H105/4) -> 375000 | L105: =((H105/6)*0.3)+(H105/6) -> 325000 | M105: =((H105/15)*0.6)+(H105/15) -> 160000 | N105: =(B105/3) -> 1000000 | O105: =(N105/2) -> 500000 | P105: =(N105/3) -> 333333.3333 | Q105: =(N105/4) -> 250000 | R105: =((N105/6)*0.3)+(N105/6) -> 216666.6667 | S105: =((N105/15)*0.6)+(N105/15) -> 106666.6667
A106: 5 | B106: 2300000 | C106: 1150000 | D106: 766666.6667 | E106: 575000 | F106: 498333.3333 | G106: 245333.3333 | H106: 1150000 | I106: 575000 | J106: 383333.3333 | K106: 287500 | L106: 249166.6667 | M106: 122666.6667 | N106: 766666.6667 | O106: 383333.3333 | P106: 255555.5556 | Q106: 191666.6667 | R106: 166111.1111 | S106: 81777.77778
A107: 4 | B107: 2000000 | C107: 1000000 | D107: 666666.6667 | E107: 500000 | F107: 433333.3333 | G107: 213333.3333 | H107: 1000000 | I107: 500000 | J107: 333333.3333 | K107: 250000 | L107: 216666.6667 | M107: 106666.6667 | N107: 666666.6667 | O107: 333333.3333 | P107: 222222.2222 | Q107: 166666.6667 | R107: 144444.4444 | S107: 71111.11111
A108: 3 | B108: 1720000 | C108: 860000 | D108: 573333.3333 | E108: 430000 | F108: 372666.6667 | G108: 183466.6667 | H108: 860000 | I108: 430000 | J108: 286666.6667 | K108: 215000 | L108: 186333.3333 | M108: 91733.33333 | N108: 573333.3333 | O108: 286666.6667 | P108: 191111.1111 | Q108: 143333.3333 | R108: 124222.2222 | S108: 61155.55556
A109: 2 | B109: 1320000 | C109: 660000 | D109: 440000 | E109: 330000 | F109: 286000 | G109: 140800 | H109: 660000 | I109: 330000 | J109: 220000 | K109: 165000 | L109: 143000 | M109: 70400 | N109: 440000 | O109: 220000 | P109: 146666.6667 | Q109: 110000 | R109: 95333.33333 | S109: 46933.33333
A110: 1 | B110: 1160000 | C110: 580000 | D110: 386666.6667 | E110: 290000 | F110: 251333.3333 | G110: 123733.3333 | H110: 580000 | I110: 290000 | J110: 193333.3333 | K110: 145000 | L110: 125666.6667 | M110: 61866.66667 | N110: 386666.6667 | O110: 193333.3333 | P110: 128888.8889 | Q110: 96666.66667 | R110: 83777.77778 | S110: 41244.44444
A112: Days | B112: =#REF! -> 
A113: #of Camera | B113: =#REF! ->  | E113: D1 | F113: 2CIF | G113: CIF
E114: =INDEX($D$105:$G$110,MATCH(B116,$A$105:$A$110,0),MATCH(B115,$D$104:$G$104,0)) ->  | F114: =INDEX($I$105:$M$110,MATCH(B116,$A$105:$A$110,0),MATCH(B115,$I$104:$M$104,0)) ->  | G114: =INDEX($N$105:$S$110,MATCH(B116,$A$105:$A$110,0),MATCH(B115,$N$104:$S$104,0)) -> 
A115: Frame Per Second | B115: =#REF! ->  | D115: with overhead | E115: =E114*0.148+E114 ->  | F115: =F114*0.148+F114 ->  | G115: =G114*0.148+G114 -> 
A116: Quality | B116: =#REF! -> 
A117: % Motion Detection | B117: =#REF! -> 
D118: Total Storage | E118: =(((86400*E115)/8))*B112*B113 ->  | F118: =(((86400*F115)/8))*B112*B113 ->  | G118: =(((86400*G115)/8))*B112*B113 -> 
D119: w/motion | E119: =IF($B$117=0,E118,E118*$B$117) ->  | F119: =IF($B$117=0,F118,F118*$B$117) ->  | G119: =IF($B$117=0,G118,G118*$B$117) -> 
D121: with overhead | E121: =(((86400*E115)/8))*B112*B113 ->  | F121: =(((86400*F115)/8))*B112*B113 ->  | G121: =(((86400*G115)/8))*B112*B113 -> 
E122: =E119/1000000000 ->  | F122: =F119/1000000000 ->  | G122: =G119/1000000000 -> 
E123: =E119/1000000000000 ->  | F123: =F119/1000000000000 ->  | G123: =G119/1000000000000 ->  | U123: TOTALS
A125: NTSC | B125: D1 Resolution | H125: 2CIF Resolution | N125: CIF Resolution
B126: Frame Rates Mbps | H126: Field Rates Mbps | N126: Field Rates Mbps | U126: # CHANNELS | V126: =#REF! -> 
A127: Quality | B127: 30 | C127: 15 | D127: D110 | E127: D17.5 | F127: D15 | G127: D12 | H127: 30 | I127: 2CIF15 | J127: 2CIF10 | K127: 2CIF7.5 | L127: 2CIF5 | M127: 2CIF2 | N127: CIF30 | O127: CIF15 | P127: CIF10 | Q127: CIF7.5 | R127: CIF5 | S127: CIF2
A128: Quality 6 | B128: 3000000 | C128: =(B128/2) -> 1500000 | D128: =(B128/3) -> 1000000 | E128: =B128/4 -> 750000 | F128: =((B128/6)*0.3)+(B128/6) -> 650000 | G128: =((B128/15)*0.6)+(B128/15) -> 320000 | H128: =(B128/2) -> 1500000 | I128: =(H128/2) -> 750000 | J128: =(H128/3) -> 500000 | K128: =(H128/4) -> 375000 | L128: =((H128/6)*0.3)+(H128/6) -> 325000 | M128: =((H128/15)*0.6)+(H128/15) -> 160000 | N128: =(B128/3) -> 1000000 | O128: =(N128/2) -> 500000 | P128: =(N128/3) -> 333333.3333 | Q128: =(N128/4) -> 250000 | R128: =((N128/6)*0.3)+(N128/6) -> 216666.6667 | S128: =((N128/15)*0.6)+(N128/15) -> 106666.6667
A129: Quality 5 | B129: 2300000 | C129: 1150000 | D129: 766666.6667 | E129: 575000 | F129: 498333.3333 | G129: 245333.3333 | H129: 1150000 | I129: 575000 | J129: 383333.3333 | K129: 287500 | L129: 249166.6667 | M129: 122666.6667 | N129: 766666.6667 | O129: 383333.3333 | P129: 255555.5556 | Q129: 191666.6667 | R129: 166111.1111 | S129: 81777.77778
A130: Quality 4 | B130: 2000000 | C130: 1000000 | D130: 666666.6667 | E130: 500000 | F130: 433333.3333 | G130: 213333.3333 | H130: 1000000 | I130: 500000 | J130: 333333.3333 | K130: 250000 | L130: 216666.6667 | M130: 106666.6667 | N130: 666666.6667 | O130: 333333.3333 | P130: 222222.2222 | Q130: 166666.6667 | R130: 144444.4444 | S130: 71111.11111 | U130: Storage In GB | V130: =INDEX($U$146:$AL$146,MATCH(V126,$U$136:$AL$136,0)) -> 
A131: Quality 3 | B131: 1720000 | C131: 860000 | D131: 573333.3333 | E131: 430000 | F131: 372666.6667 | G131: 183466.6667 | H131: 860000 | I131: 430000 | J131: 286666.6667 | K131: 215000 | L131: 186333.3333 | M131: 91733.33333 | N131: 573333.3333 | O131: 286666.6667 | P131: 191111.1111 | Q131: 143333.3333 | R131: 124222.2222 | S131: 61155.55556 | U131: Storage In TB | V131: =INDEX($U$147:$AL$147,MATCH(V126,$U$136:$AL$136,0)) -> 
A132: Quality 2 | B132: 1320000 | C132: 660000 | D132: 440000 | E132: 330000 | F132: 286000 | G132: 140800 | H132: 660000 | I132: 330000 | J132: 220000 | K132: 165000 | L132: 143000 | M132: 70400 | N132: 440000 | O132: 220000 | P132: 146666.6667 | Q132: 110000 | R132: 95333.33333 | S132: 46933.33333
A133: Quality 1 | B133: 1160000 | C133: 580000 | D133: 386666.6667 | E133: 290000 | F133: 251333.3333 | G133: 123733.3333 | H133: 580000 | I133: 290000 | J133: 193333.3333 | K133: 145000 | L133: 125666.6667 | M133: 61866.66667 | N133: 386666.6667 | O133: 193333.3333 | P133: 128888.8889 | Q133: 96666.66667 | R133: 83777.77778 | S133: 41244.44444 | U133: Bandwidth In Mbps | V133: =INDEX($U$149:$AL$149,MATCH(V126,$U$136:$AL$136,0)) -> 
U134: Bandwidth in kbps | V134: =INDEX($U$150:$AL$150,MATCH(V126,$U$136:$AL$136,0)) -> 
B136: 1 | C136: 2 | D136: 3 | E136: 4 | F136: 5 | G136: 6 | H136: 7 | I136: 8 | J136: 9 | K136: 10 | L136: 11 | M136: 12 | N136: 13 | O136: 14 | P136: 15 | Q136: 16 | R136: 17 | S136: 18 | U136: 1 | V136: 2 | W136: 3 | X136: 4 | Y136: 5 | Z136: 6 | AA136: 7 | AB136: 8 | AC136: 9 | AD136: 10 | AE136: 11 | AF136: 12 | AG136: 13 | AH136: 14 | AI136: 15 | AJ136: 16 | AK136: 17 | AL136: 18
A137: Days | B137: =#REF! ->  | D137: =#REF! -> 
A138: Res/fps | B138: =#REF!&#REF! ->  | C138: =#REF!&#REF! ->  | D138: =#REF!&#REF! ->  | E138: =#REF!&#REF! ->  | F138: =#REF!&#REF! ->  | G138: =#REF!&#REF! ->  | H138: =#REF!&#REF! ->  | I138: =#REF!&#REF! ->  | J138: =#REF!&#REF! ->  | K138: =#REF!&#REF! ->  | L138: =#REF!&#REF! ->  | M138: =#REF!&#REF! ->  | N138: =#REF!&#REF! ->  | O138: =#REF!&#REF! ->  | P138: =#REF!&#REF! ->  | Q138: =#REF!&#REF! ->  | R138: =#REF!&#REF! ->  | S138: =#REF!&#REF! -> 
A139: Quality | B139: =#REF!&#REF! ->  | C139: =#REF!&#REF! ->  | D139: =#REF!&#REF! ->  | E139: =#REF!&#REF! ->  | F139: =#REF!&#REF! ->  | G139: =#REF!&#REF! ->  | H139: =#REF!&#REF! ->  | I139: =#REF!&#REF! ->  | J139: =#REF!&#REF! ->  | K139: =#REF!&#REF! ->  | L139: =#REF!&#REF! ->  | M139: =#REF!&#REF! ->  | N139: =#REF!&#REF! ->  | O139: =#REF!&#REF! ->  | P139: =#REF!&#REF! ->  | Q139: =#REF!&#REF! ->  | R139: =#REF!&#REF! ->  | S139: =#REF!&#REF! -> 
A140: % Motion | B140: =#REF! ->  | C140: =#REF! ->  | D140: =#REF! ->  | E140: =#REF! ->  | F140: =#REF! ->  | G140: =#REF! ->  | H140: =#REF! ->  | I140: =#REF! ->  | J140: =#REF! ->  | K140: =#REF! ->  | L140: =#REF! ->  | M140: =#REF! ->  | N140: =#REF! ->  | O140: =#REF! ->  | P140: =#REF! ->  | Q140: =#REF! ->  | R140: =#REF! ->  | S140: =#REF! -> 
A142: Bitrate | B142: =INDEX($D$128:$S$133,MATCH(B139,$A$128:$A$133,0),MATCH(B138,$D$127:$S$127,0)) ->  | T142: Bitrate | U142: =SUM(B142:B142) ->  | V142: =SUM(B142:C142) ->  | W142: =SUM(B142:D142) ->  | X142: =SUM(B142:E142) ->  | Y142: =SUM(B142:F142) ->  | Z142: =SUM(B142:G142) ->  | AA142: =SUM(B142:H142) ->  | AB142: =SUM(B142:I142) ->  | AC142: =SUM(B142:J142) ->  | AD142: =SUM(B142:K142) ->  | AE142: =SUM(B142:L142) ->  | AF142: =SUM(B142:M142) ->  | AG142: =SUM(B142:N142) ->  | AH142: =SUM(B142:O142) ->  | AI142: =SUM(B142:P142) ->  | AJ142: =SUM(B142:Q142) ->  | AK142: =SUM(B142:R142) ->  | AL142: =SUM(B142:S142) -> 
A143: Bitrate with Overhead | B143: =B142*0.148+B142 ->  | T143: Bitrate with Overhead | U143: =SUM(B143:B143) ->  | V143: =SUM(B143:C143) ->  | W143: =SUM(B143:D143) ->  | X143: =SUM(B143:E143) ->  | Y143: =SUM(B143:F143) ->  | Z143: =SUM(B143:G143) ->  | AA143: =SUM(B143:H143) ->  | AB143: =SUM(B143:I143) ->  | AC143: =SUM(B143:J143) ->  | AD143: =SUM(B143:K143) ->  | AE143: =SUM(B143:L143) ->  | AF143: =SUM(B143:M143) ->  | AG143: =SUM(B143:N143) ->  | AH143: =SUM(B143:O143) ->  | AI143: =SUM(B143:P143) ->  | AJ143: =SUM(B143:Q143) ->  | AK143: =SUM(B143:R143) ->  | AL143: =SUM(B143:S143) -> 
A144: Storage | B144: =(((86400*B143)/8))*B137 ->  | C144: =(((86400*C143)/8))*B137 ->  | D144: =(((86400*D143)/8))*B137 ->  | E144: =(((86400*E143)/8))*B137 ->  | F144: =(((86400*F143)/8))*B137 ->  | G144: =(((86400*G143)/8))*B137 ->  | H144: =(((86400*H143)/8))*B137 ->  | I144: =(((86400*I143)/8))*B137 ->  | J144: =(((86400*J143)/8))*B137 ->  | K144: =(((86400*K143)/8))*B137 ->  | L144: =(((86400*L143)/8))*B137 ->  | M144: =(((86400*M143)/8))*B137 ->  | N144: =(((86400*N143)/8))*B137 ->  | O144: =(((86400*O143)/8))*B137 ->  | P144: =(((86400*P143)/8))*B137 ->  | Q144: =(((86400*Q143)/8))*B137 ->  | R144: =(((86400*R143)/8))*B137 ->  | S144: =(((86400*S143)/8))*B137 ->  | T144: Storage | U144: =SUM(B144:B144) ->  | V144: =SUM(B144:C144) ->  | W144: =SUM(B144:D144) ->  | X144: =SUM(B144:E144) ->  | Y144: =SUM(B144:F144) ->  | Z144: =SUM(B144:G144) ->  | AA144: =SUM(B144:H144) ->  | AB144: =SUM(B144:I144) ->  | AC144: =SUM(B144:J144) ->  | AD144: =SUM(B144:K144) ->  | AE144: =SUM(B144:L144) ->  | AF144: =SUM(B144:M144) ->  | AG144: =SUM(B144:N144) ->  | AH144: =SUM(B144:O144) ->  | AI144: =SUM(B144:P144) ->  | AJ144: =SUM(B144:Q144) ->  | AK144: =SUM(B144:R144) ->  | AL144: =SUM(B144:S144) -> 
A145: Storage with Motion | B145: =IF($B$140=0,B144,B144*$B$140) ->  | C145: =IF($C$86=0,C144,C144*$C$86) ->  | D145: =IF($D$86=0,D144,D144*$D$86) ->  | E145: =IF($E$86=0,E144,E144*$E$86) ->  | F145: =IF($F$86=0,F144,F144*$F$86) ->  | G145: =IF($G$86=0,G144,G144*$G$86) ->  | H145: =IF($H$86=0,H144,H144*$H$86) ->  | I145: =IF($I$86=0,I144,I144*$I$86) ->  | J145: =IF($J$86=0,J144,J144*$J$86) ->  | K145: =IF($K$86=0,K144,K144*$K$86) ->  | L145: =IF($L$86=0,L144,L144*$L$86) ->  | M145: =IF($M$86=0,M144,M144*$M$86) ->  | N145: =IF($N$86=0,N144,N144*$N$86) ->  | O145: =IF($O$86=0,O144,O144*$O$86) ->  | P145: =IF($P$86=0,P144,P144*$P$86) ->  | Q145: =IF($Q$86=0,Q144,Q144*$Q$86) ->  | R145: =IF($R$86=0,R144,R144*$R$86) ->  | S145: =IF($S$86=0,S144,S144*$S$86) ->  | T145: Storage with Motion | U145: =SUM(B145:B145) ->  | V145: =SUM(B145:C145) ->  | W145: =SUM(B145:D145) ->  | X145: =SUM(B145:E145) ->  | Y145: =SUM(B145:F145) ->  | Z145: =SUM(B145:G145) ->  | AA145: =SUM(B145:H145) ->  | AB145: =SUM(B145:I145) ->  | AC145: =SUM(B145:J145) ->  | AD145: =SUM(B145:K145) ->  | AE145: =SUM(B145:L145) ->  | AF145: =SUM(B145:M145) ->  | AG145: =SUM(B145:N145) ->  | AH145: =SUM(B145:O145) ->  | AI145: =SUM(B145:P145) ->  | AJ145: =SUM(B145:Q145) ->  | AK145: =SUM(B145:R145) ->  | AL145: =SUM(B145:S145) -> 
A146: Storage In GB | B146: =B145/1000000000 ->  | T146: Storage In GB | U146: =U145/1000000000 -> 
A147: Storage In TB | B147: =B145/1000000000000 ->  | T147: Storage In TB | U147: =U145/1000000000000 -> 
A149: Bandwidth In Mbps | B149: =B143/1000000 ->  | T149: Bandwidth In Mbps | U149: =U143/1000000 -> 
A150: Bandwidth in kbps | B150: =B149*1000 ->  | T150: Bandwidth in kbps | U150: =U149*1000 -> 
A153: SymDec16 PAL
A156: NTSC | B156: D1 Resolution | G156: 2CIF Resolution | L156: CIF Resolution
B157: Frame Rates Mbps | G157: Field Rates Mbps | L157: Field Rates Mbps
A158: Quality | B158: 25 | C158: 12.5 | D158: 8.3 | E158: 5 | F158: 2.1 | G158: 25 | H158: 12.5 | I158: 8.3 | J158: 5 | K158: 2.1 | L158: 25 | M158: 12.5 | N158: 8.3 | O158: 5 | P158: 2.1
A159: 9 | B159: 3000000 | C159: =(B159/2) -> 1500000 | D159: =(B159/3) -> 1000000 | E159: =((B159/5)*0.3)+(B159/5) -> 780000 | F159: =((B159/12)*0.6)+(B159/12) -> 400000 | G159: =(B159/2) -> 1500000 | H159: =(G159/2) -> 750000 | I159: =(G159/3) -> 500000 | J159: =((G159/5)*0.3)+(G159/5) -> 390000 | K159: =((G159/12)*0.6)+(G159/12) -> 200000 | L159: =(B159/3) -> 1000000 | M159: =(L159/2) -> 500000 | N159: =(L159/3) -> 333333.3333 | O159: =((L159/5)*0.3)+(L159/5) -> 260000 | P159: =((L159/12)*0.6)+(L159/12) -> 133333.3333
A160: 8 | B160: 2600000 | C160: 1300000 | D160: 866666.6667 | E160: 676000 | F160: 346666.6667 | G160: 1300000 | H160: 650000 | I160: 433333.3333 | J160: 338000 | K160: 173333.3333 | L160: 866666.6667 | M160: 433333.3333 | N160: 288888.8889 | O160: 225333.3333 | P160: 115555.5556
A161: 7 | B161: 2300000 | C161: 1150000 | D161: 766666.6667 | E161: 598000 | F161: 306666.6667 | G161: 1150000 | H161: 575000 | I161: 383333.3333 | J161: 299000 | K161: 153333.3333 | L161: 766666.6667 | M161: 383333.3333 | N161: 255555.5556 | O161: 199333.3333 | P161: 102222.2222
A162: 6 | B162: 2000000 | C162: 1000000 | D162: 666666.6667 | E162: 520000 | F162: 266666.6667 | G162: 1000000 | H162: 500000 | I162: 333333.3333 | J162: 260000 | K162: 133333.3333 | L162: 666666.6667 | M162: 333333.3333 | N162: 222222.2222 | O162: 173333.3333 | P162: 88888.88889
A163: 5 | B163: 1720000 | C163: 860000 | D163: 573333.3333 | E163: 447200 | F163: 229333.3333 | G163: 860000 | H163: 430000 | I163: 286666.6667 | J163: 223600 | K163: 114666.6667 | L163: 573333.3333 | M163: 286666.6667 | N163: 191111.1111 | O163: 149066.6667 | P163: 76444.44444
A164: 4 | B164: 1560000 | C164: 780000 | D164: 520000 | E164: 405600 | F164: 208000 | G164: 780000 | H164: 390000 | I164: 260000 | J164: 202800 | K164: 104000 | L164: 520000 | M164: 260000 | N164: 173333.3333 | O164: 135200 | P164: 69333.33333
A165: 3 | B165: 1320000 | C165: 660000 | D165: 440000 | E165: 343200 | F165: 176000 | G165: 660000 | H165: 330000 | I165: 220000 | J165: 171600 | K165: 88000 | L165: 440000 | M165: 220000 | N165: 146666.6667 | O165: 114400 | P165: 58666.66667
A166: 2 | B166: 1160000 | C166: 580000 | D166: 386666.6667 | E166: 301600 | F166: 154666.6667 | G166: 580000 | H166: 290000 | I166: 193333.3333 | J166: 150800 | K166: 77333.33333 | L166: 386666.6667 | M166: 193333.3333 | N166: 128888.8889 | O166: 100533.3333 | P166: 51555.55556
A167: 1 | B167: 1000000 | C167: 500000 | D167: 333333.3333 | E167: 260000 | F167: 133333.3333 | G167: 500000 | H167: 250000 | I167: 166666.6667 | J167: 130000 | K167: 66666.66667 | L167: 333333.3333 | M167: 166666.6667 | N167: 111111.1111 | O167: 86666.66667 | P167: 44444.44444
A169: Days | B169: =#REF! -> 
A170: #of Camera | B170: =#REF! ->  | E170: D1 | F170: 2CIF | G170: CIF
E171: =INDEX($B$159:$F$167,MATCH(B173,$A$159:$A$167,0),MATCH(B172,$B$158:$F$158,0)) ->  | F171: =INDEX($G$159:$K$167,MATCH(B173,$A$159:$A$167,0),MATCH(B172,$G$158:$K$158,0)) ->  | G171: =INDEX($L$159:$P$167,MATCH(B173,$A$159:$A$167,0),MATCH(B172,$L$158:$P$158,0)) -> 
A172: Frame Per Second | B172: =#REF! ->  | D172: with overhead | E172: =E171*0.148+E171 ->  | F172: =F171*0.148+F171 ->  | G172: =G171*0.148+G171 -> 
A173: Quality | B173: =#REF! -> 
A174: % Motion Detection | B174: =#REF! -> 
D175: Total Storage | E175: =(((86400*E172)/8))*B169*B170 ->  | F175: =(((86400*F172)/8))*B169*B170 ->  | G175: =(((86400*G172)/8))*B169*B170 -> 
D176: w/motion | E176: =IF($B$174=0,E175,E175*$B$174) ->  | F176: =IF($B$174=0,F175,F175*$B$174) ->  | G176: =IF($B$174=0,G175,G175*$B$174) -> 
D178: with overhead | E178: =(((86400*E172)/8))*B169*B170 ->  | F178: =(((86400*F172)/8))*B169*B170 ->  | G178: =(((86400*G172)/8))*B169*B170 -> 
E179: =E176/1000000000 ->  | F179: =F176/1000000000 ->  | G179: =G176/1000000000 -> 
E180: =E176/1000000000000 ->  | F180: =F176/1000000000000 ->  | G180: =G176/1000000000000 -> 
A182: NTSC | B182: D1 Resolution | G182: 2CIF Resolution | L182: CIF Resolution
B183: Frame Rates Mbps | G183: Field Rates Mbps | L183: Field Rates Mbps | X183: TOTALS
A184: Quality | B184: D125 | C184: D112.5 | D184: D18.3 | E184: D15 | F184: D12.1 | G184: 2CIF25 | H184: 2CIF12.5 | I184: 2CIF8.3 | J184: 2CIF5 | K184: 2CIF2.1 | L184: CIF25 | M184: CIF12.5 | N184: CIF8.3 | O184: CIF5 | P184: CIF2.1
A185: Quality 9 | B185: 3000000 | C185: =(B185/2) -> 1500000 | D185: =(B185/3) -> 1000000 | E185: =((B185/5)*0.3)+(B185/5) -> 780000 | F185: =((B185/12)*0.6)+(B185/12) -> 400000 | G185: =(B185/2) -> 1500000 | H185: =(G185/2) -> 750000 | I185: =(G185/3) -> 500000 | J185: =((G185/5)*0.3)+(G185/5) -> 390000 | K185: =((G185/12)*0.6)+(G185/12) -> 200000 | L185: =(B185/3) -> 1000000 | M185: =(L185/2) -> 500000 | N185: =(L185/3) -> 333333.3333 | O185: =((L185/5)*0.3)+(L185/5) -> 260000 | P185: =((L185/12)*0.6)+(L185/12) -> 133333.3333
A186: Quality 8 | B186: 2600000 | C186: 1300000 | D186: 866666.6667 | E186: 676000 | F186: 346666.6667 | G186: 1300000 | H186: 650000 | I186: 433333.3333 | J186: 338000 | K186: 173333.3333 | L186: 866666.6667 | M186: 433333.3333 | N186: 288888.8889 | O186: 225333.3333 | P186: 115555.5556 | X186: # CHANNELS | Y186: =#REF! -> 
A187: Quality 7 | B187: 2300000 | C187: 1150000 | D187: 766666.6667 | E187: 598000 | F187: 306666.6667 | G187: 1150000 | H187: 575000 | I187: 383333.3333 | J187: 299000 | K187: 153333.3333 | L187: 766666.6667 | M187: 383333.3333 | N187: 255555.5556 | O187: 199333.3333 | P187: 102222.2222
A188: Quality 6 | B188: 2000000 | C188: 1000000 | D188: 666666.6667 | E188: 520000 | F188: 266666.6667 | G188: 1000000 | H188: 500000 | I188: 333333.3333 | J188: 260000 | K188: 133333.3333 | L188: 666666.6667 | M188: 333333.3333 | N188: 222222.2222 | O188: 173333.3333 | P188: 88888.88889
A189: Quality 5 | B189: 1720000 | C189: 860000 | D189: 573333.3333 | E189: 447200 | F189: 229333.3333 | G189: 860000 | H189: 430000 | I189: 286666.6667 | J189: 223600 | K189: 114666.6667 | L189: 573333.3333 | M189: 286666.6667 | N189: 191111.1111 | O189: 149066.6667 | P189: 76444.44444
A190: Quality 4 | B190: 1560000 | C190: 780000 | D190: 520000 | E190: 405600 | F190: 208000 | G190: 780000 | H190: 390000 | I190: 260000 | J190: 202800 | K190: 104000 | L190: 520000 | M190: 260000 | N190: 173333.3333 | O190: 135200 | P190: 69333.33333 | X190: Storage In GB | Y190: =INDEX($X$206:$AQ$206,MATCH(Y186,$X$196:$AQ$196,0)) -> 
A191: Quality 3 | B191: 1320000 | C191: 660000 | D191: 440000 | E191: 343200 | F191: 176000 | G191: 660000 | H191: 330000 | I191: 220000 | J191: 171600 | K191: 88000 | L191: 440000 | M191: 220000 | N191: 146666.6667 | O191: 114400 | P191: 58666.66667 | X191: Storage In TB | Y191: =INDEX($X$207:$AQ$207,MATCH(Y186,$X$196:$AQ$196,0)) -> 
A192: Quality 2 | B192: 1160000 | C192: 580000 | D192: 386666.6667 | E192: 301600 | F192: 154666.6667 | G192: 580000 | H192: 290000 | I192: 193333.3333 | J192: 150800 | K192: 77333.33333 | L192: 386666.6667 | M192: 193333.3333 | N192: 128888.8889 | O192: 100533.3333 | P192: 51555.55556
A193: Quality 1 | B193: 1000000 | C193: 500000 | D193: 333333.3333 | E193: 260000 | F193: 133333.3333 | G193: 500000 | H193: 250000 | I193: 166666.6667 | J193: 130000 | K193: 66666.66667 | L193: 333333.3333 | M193: 166666.6667 | N193: 111111.1111 | O193: 86666.66667 | P193: 44444.44444 | X193: Bandwidth In Mbps | Y193: =INDEX($X$209:$AQ$209,MATCH(Y186,$X$196:$AQ$196,0)) -> 
X194: Bandwidth in kbps | Y194: =INDEX($X$210:$AQ$210,MATCH(Y186,$X$196:$AQ$196,0)) -> 
B196: 1 | C196: 2 | D196: 3 | E196: 4 | F196: 5 | G196: 6 | H196: 7 | I196: 8 | J196: 9 | K196: 10 | L196: 11 | M196: 12 | N196: 13 | O196: 14 | P196: 15 | Q196: 16 | R196: 17 | S196: 18 | T196: 19 | U196: 20 | X196: 1 | Y196: 2 | Z196: 3 | AA196: 4 | AB196: 5 | AC196: 6 | AD196: 7 | AE196: 8 | AF196: 9 | AG196: 10 | AH196: 11 | AI196: 12 | AJ196: 13 | AK196: 14 | AL196: 15 | AM196: 16 | AN196: 17 | AO196: 18 | AP196: 19 | AQ196: 20
A197: Days | B197: =#REF! -> 
A198: Res/fps | B198: =#REF!&#REF! ->  | C198: =#REF!&#REF! ->  | D198: =#REF!&#REF! ->  | E198: =#REF!&#REF! ->  | F198: =#REF!&#REF! ->  | G198: =#REF!&#REF! ->  | H198: =#REF!&#REF! ->  | I198: =#REF!&#REF! ->  | J198: =#REF!&#REF! ->  | K198: =#REF!&#REF! ->  | L198: =#REF!&#REF! ->  | M198: =#REF!&#REF! ->  | N198: =#REF!&#REF! ->  | O198: =#REF!&#REF! ->  | P198: =#REF!&#REF! ->  | Q198: =#REF!&#REF! ->  | R198: =#REF!&#REF! ->  | S198: =#REF!&#REF! ->  | T198: =#REF!&#REF! ->  | U198: =#REF!&#REF! -> 
A199: Quality | B199: =#REF!&#REF! ->  | C199: =#REF!&#REF! ->  | D199: =#REF!&#REF! ->  | E199: =#REF!&#REF! ->  | F199: =#REF!&#REF! ->  | G199: =#REF!&#REF! ->  | H199: =#REF!&#REF! ->  | I199: =#REF!&#REF! ->  | J199: =#REF!&#REF! ->  | K199: =#REF!&#REF! ->  | L199: =#REF!&#REF! ->  | M199: =#REF!&#REF! ->  | N199: =#REF!&#REF! ->  | O199: =#REF!&#REF! ->  | P199: =#REF!&#REF! ->  | Q199: =#REF!&#REF! ->  | R199: =#REF!&#REF! ->  | S199: =#REF!&#REF! ->  | T199: =#REF!&#REF! ->  | U199: =#REF!&#REF! -> 
A200: % Motion | B200: =#REF! ->  | C200: =#REF! ->  | D200: =#REF! ->  | E200: =#REF! ->  | F200: =#REF! ->  | G200: =#REF! ->  | H200: =#REF! ->  | I200: =#REF! ->  | J200: =#REF! ->  | K200: =#REF! ->  | L200: =#REF! ->  | M200: =#REF! ->  | N200: =#REF! ->  | O200: =#REF! ->  | P200: =#REF! ->  | Q200: =#REF! ->  | R200: =#REF! ->  | S200: =#REF! ->  | T200: =#REF! ->  | U200: =#REF! -> 
A202: Bitrate | B202: =INDEX($B$185:$P$193,MATCH(B199,$A$185:$A$193,0),MATCH(B198,$B$184:$P$184,0)) ->  | W202: Bitrate | X202: =SUM(B202:B202) ->  | Y202: =SUM(B202:C202) ->  | Z202: =SUM(B202:D202) ->  | AA202: =SUM(B202:E202) ->  | AB202: =SUM(B202:F202) ->  | AC202: =SUM(B202:G202) ->  | AD202: =SUM(B202:H202) ->  | AE202: =SUM(B202:I202) ->  | AF202: =SUM(B202:J202) ->  | AG202: =SUM(B202:K202) ->  | AH202: =SUM(B202:L202) ->  | AI202: =SUM(B202:M202) ->  | AJ202: =SUM(B202:N202) ->  | AK202: =SUM(B202:O202) ->  | AL202: =SUM(B202:P202) ->  | AM202: =SUM(B202:Q202) ->  | AN202: =SUM(B202:R202) ->  | AO202: =SUM(B202:S202) ->  | AP202: =SUM(B202:T202) ->  | AQ202: =SUM(B202:U202) -> 
A203: Bitrate with Overhead | B203: =B202*0.148+B202 ->  | W203: Bitrate with Overhead | X203: =SUM(B203:B203) ->  | Y203: =SUM(B203:C203) ->  | Z203: =SUM(B203:D203) ->  | AA203: =SUM(B203:E203) ->  | AB203: =SUM(B203:F203) ->  | AC203: =SUM(B203:G203) ->  | AD203: =SUM(B203:H203) ->  | AE203: =SUM(B203:I203) ->  | AF203: =SUM(B203:J203) ->  | AG203: =SUM(B203:K203) ->  | AH203: =SUM(B203:L203) ->  | AI203: =SUM(B203:M203) ->  | AJ203: =SUM(B203:N203) ->  | AK203: =SUM(B203:O203) ->  | AL203: =SUM(B203:P203) ->  | AM203: =SUM(B203:Q203) ->  | AN203: =SUM(B203:R203) ->  | AO203: =SUM(B203:S203) ->  | AP203: =SUM(B203:T203) ->  | AQ203: =SUM(B203:U203) -> 
A204: Storage | B204: =(((86400*B203)/8))*B197 ->  | C204: =(((86400*C203)/8))*B197 ->  | D204: =(((86400*D203)/8))*B197 ->  | E204: =(((86400*E203)/8))*B197 ->  | F204: =(((86400*F203)/8))*B197 ->  | G204: =(((86400*G203)/8))*B197 ->  | H204: =(((86400*H203)/8))*B197 ->  | I204: =(((86400*I203)/8))*B197 ->  | J204: =(((86400*J203)/8))*B197 ->  | K204: =(((86400*K203)/8))*B197 ->  | L204: =(((86400*L203)/8))*B197 ->  | M204: =(((86400*M203)/8))*B197 ->  | N204: =(((86400*N203)/8))*B197 ->  | O204: =(((86400*O203)/8))*B197 ->  | P204: =(((86400*P203)/8))*B197 ->  | Q204: =(((86400*Q203)/8))*B197 ->  | R204: =(((86400*R203)/8))*B197 ->  | S204: =(((86400*S203)/8))*B197 ->  | T204: =(((86400*T203)/8))*B197 ->  | U204: =(((86400*U203)/8))*B197 ->  | W204: Storage | X204: =SUM(B204:B204) ->  | Y204: =SUM(B204:C204) ->  | Z204: =SUM(B204:D204) ->  | AA204: =SUM(B204:E204) ->  | AB204: =SUM(B204:F204) ->  | AC204: =SUM(B204:G204) ->  | AD204: =SUM(B204:H204) ->  | AE204: =SUM(B204:I204) ->  | AF204: =SUM(B204:J204) ->  | AG204: =SUM(B204:K204) ->  | AH204: =SUM(B204:L204) ->  | AI204: =SUM(B204:M204) ->  | AJ204: =SUM(B204:N204) ->  | AK204: =SUM(B204:O204) ->  | AL204: =SUM(B204:P204) ->  | AM204: =SUM(B204:Q204) ->  | AN204: =SUM(B204:R204) ->  | AO204: =SUM(B204:S204) ->  | AP204: =SUM(B204:T204) ->  | AQ204: =SUM(B204:U204) -> 
A205: Storage with Motion | B205: =IF($B$200=0,B204,B204*$B$200) ->  | C205: =IF($C$200=0,C204,C204*$C$200) ->  | D205: =IF($D$200=0,D204,D204*$D$200) ->  | E205: =IF($E$200=0,E204,E204*$E$200) ->  | F205: =IF($F$200=0,F204,F204*$F$200) ->  | G205: =IF($G$200=0,G204,G204*$G$200) ->  | H205: =IF($H$200=0,H204,H204*$H$200) ->  | I205: =IF($I$200=0,I204,I204*$I$200) ->  | J205: =IF($J$200=0,J204,J204*$J$200) ->  | K205: =IF($K$200=0,K204,K204*$K$200) ->  | L205: =IF($L$200=0,L204,L204*$L$200) ->  | M205: =IF($M$200=0,M204,M204*$M$200) ->  | N205: =IF($N$200=0,N204,N204*$N$200) ->  | O205: =IF($O$200=0,O204,O204*$O$200) ->  | P205: =IF($P$200=0,P204,P204*$P$200) ->  | Q205: =IF($Q$200=0,Q204,Q204*$Q$200) ->  | R205: =IF($R$200=0,R204,R204*$R$200) ->  | S205: =IF($S$200=0,S204,S204*$S$200) ->  | T205: =IF($T$200=0,T204,T204*$T$200) ->  | U205: =IF($U$200=0,U204,U204*$U$200) ->  | W205: Storage with Motion | X205: =SUM(B205:B205) ->  | Y205: =SUM(B205:C205) ->  | Z205: =SUM(B205:D205) ->  | AA205: =SUM(B205:E205) ->  | AB205: =SUM(B205:F205) ->  | AC205: =SUM(B205:G205) ->  | AD205: =SUM(B205:H205) ->  | AE205: =SUM(B205:I205) ->  | AF205: =SUM(B205:J205) ->  | AG205: =SUM(B205:K205) ->  | AH205: =SUM(B205:L205) ->  | AI205: =SUM(B205:M205) ->  | AJ205: =SUM(B205:N205) ->  | AK205: =SUM(B205:O205) ->  | AL205: =SUM(B205:P205) ->  | AM205: =SUM(B205:Q205) ->  | AN205: =SUM(B205:R205) ->  | AO205: =SUM(B205:S205) ->  | AP205: =SUM(B205:T205) ->  | AQ205: =SUM(B205:U205) -> 
A206: Storage In GB | B206: =B205/1000000000 ->  | W206: Storage In GB | X206: =X205/1000000000 -> 
A207: Storage In TB | B207: =B205/1000000000000 ->  | W207: Storage In TB | X207: =X205/1000000000000 -> 
A209: Bandwidth In Mbps | B209: =B203/1000000 ->  | W209: Bandwidth In Mbps | X209: =X203/1000000 -> 
A210: Bandwidth in kbps | B210: =B209*1000 ->  | W210: Bandwidth in kbps | X210: =X209*1000 -> 
A213: SymSafe PRO (PAL)
A215: NTSC | B215: D1 Resolution | G215: 2CIF Resolution | L215: CIF Resolution
B216: Frame Rates Mbps | G216: Field Rates Mbps | L216: Field Rates Mbps
A217: Quality | B217: 25 | C217: 12.5 | D217: 8.3 | E217: 5 | F217: 2.1 | G217: 25 | H217: 12.5 | I217: 8.3 | J217: 5 | K217: 2.1 | L217: 25 | M217: 12.5 | N217: 8.3 | O217: 5 | P217: 2.1
A218: 6 | B218: 3000000 | C218: =(B218/2) -> 1500000 | D218: =(B218/3) -> 1000000 | E218: =((B218/5)*0.3)+(B218/5) -> 780000 | F218: =((B218/12)*0.6)+(B218/12) -> 400000 | G218: =(B218/2) -> 1500000 | H218: =(G218/2) -> 750000 | I218: =(G218/3) -> 500000 | J218: =((G218/5)*0.3)+(G218/5) -> 390000 | K218: =((G218/12)*0.6)+(G218/12) -> 200000 | L218: =(B218/3) -> 1000000 | M218: =(L218/2) -> 500000 | N218: =(L218/3) -> 333333.3333 | O218: =((L218/5)*0.3)+(L218/5) -> 260000 | P218: =((L218/12)*0.6)+(L218/12) -> 133333.3333
A219: 5 | B219: 2300000 | C219: 1150000 | D219: 766666.6667 | E219: 598000 | F219: 306666.6667 | G219: 1150000 | H219: 575000 | I219: 383333.3333 | J219: 299000 | K219: 153333.3333 | L219: 766666.6667 | M219: 383333.3333 | N219: 255555.5556 | O219: 199333.3333 | P219: 102222.2222
A220: 4 | B220: 2000000 | C220: 1000000 | D220: 666666.6667 | E220: 520000 | F220: 266666.6667 | G220: 1000000 | H220: 500000 | I220: 333333.3333 | J220: 260000 | K220: 133333.3333 | L220: 666666.6667 | M220: 333333.3333 | N220: 222222.2222 | O220: 173333.3333 | P220: 88888.88889
A221: 3 | B221: 1720000 | C221: 860000 | D221: 573333.3333 | E221: 447200 | F221: 229333.3333 | G221: 860000 | H221: 430000 | I221: 286666.6667 | J221: 223600 | K221: 114666.6667 | L221: 573333.3333 | M221: 286666.6667 | N221: 191111.1111 | O221: 149066.6667 | P221: 76444.44444
A222: 2 | B222: 1320000 | C222: 660000 | D222: 440000 | E222: 343200 | F222: 176000 | G222: 660000 | H222: 330000 | I222: 220000 | J222: 171600 | K222: 88000 | L222: 440000 | M222: 220000 | N222: 146666.6667 | O222: 114400 | P222: 58666.66667
A223: 1 | B223: 1160000 | C223: 580000 | D223: 386666.6667 | E223: 301600 | F223: 154666.6667 | G223: 580000 | H223: 290000 | I223: 193333.3333 | J223: 150800 | K223: 77333.33333 | L223: 386666.6667 | M223: 193333.3333 | N223: 128888.8889 | O223: 100533.3333 | P223: 51555.55556
A225: Days | B225: =#REF! -> 
A226: #of Camera | B226: =#REF! ->  | E226: D1 | F226: 2CIF | G226: CIF
E227: =INDEX($C$218:$F$223,MATCH(B229,$A$218:$A$223,0),MATCH(B228,$C$217:$F$217,0)) ->  | F227: =INDEX($G$218:$K$223,MATCH(B229,$A$218:$A$223,0),MATCH(B228,$G$217:$K$217,0)) ->  | G227: =INDEX($L$218:$P$223,MATCH(B229,$A$218:$A$223,0),MATCH(B228,$L$217:$P$217,0)) -> 
A228: Frame Per Second | B228: =#REF! ->  | D228: with overhead | E228: =E227*0.148+E227 ->  | F228: =F227*0.148+F227 ->  | G228: =G227*0.148+G227 -> 
A229: Quality | B229: =#REF! -> 
A230: % Motion Detection | B230: =#REF! -> 
D231: Total Storage | E231: =(((86400*E228)/8))*B225*B226 ->  | F231: =(((86400*F228)/8))*B225*B226 ->  | G231: =(((86400*G228)/8))*B225*B226 -> 
D232: w/motion | E232: =IF($B$230=0,E231,E231*$B$230) ->  | F232: =IF($B$230=0,F231,F231*$B$230) ->  | G232: =IF($B$230=0,G231,G231*$B$230) -> 
D234: with overhead | E234: =(((86400*E228)/8))*B225*B226 ->  | F234: =(((86400*F228)/8))*B225*B226 ->  | G234: =(((86400*G228)/8))*B225*B226 -> 
E235: =E232/1000000000 ->  | F235: =F232/1000000000 ->  | G235: =G232/1000000000 -> 
E236: =E232/1000000000000 ->  | F236: =F232/1000000000000 ->  | G236: =G232/1000000000000 ->  | U236: TOTALS
A238: NTSC | B238: D1 Resolution | G238: 2CIF Resolution | L238: CIF Resolution
B239: Frame Rates Mbps | G239: Field Rates Mbps | L239: Field Rates Mbps | U239: # CHANNELS | V239: =#REF! -> 
... 370 more rows
